{"text_format":"3","workbook":"xlsx","n_sheets":39,"sheets":["Инструкция","Лог обновления","Титульный","Список МО","ТЭ","Теплоноситель","Передача ТЭ","Резервная мощность","Подключение","Горячая вода (по компонентам)","Горячая вода","Поставка","Ссылки на публикации","Комментарии","Проверка","AllSheetsInThisWorkbook","TEHSHEET","et_union_hor","et_union_vert","modInfo","modRegion","modReestr","modfrmReestr","modUpdTemplMain","REESTR_ORG","modClassifierValidate","modProv","modHyp","modList00","modList01","modList02","modList03","modList11","modfrmDateChoose","modComm","modThisWorkbook","REESTR_MO","modfrmReestrMR","modfrmCheckUpdates"],"not_rendered":{"images":28,"macros":1,"defined_names":161},"read":"whole","date_system":"1900"}

{"sheet":"Инструкция","index":0,"n_rows":102,"n_cols":27,"rows_kept":102,"merged":[[1,1,1,6],[2,1,2,2],[4,1,4,24],[6,4,18,23],[20,5,20,12],[20,15,20,23],[21,5,21,12],[21,15,21,23],[22,15,22,22],[34,4,38,23],[39,4,39,23],[40,4,44,23],[45,4,56,23],[57,4,57,6],[57,7,57,23],[58,4,58,6],[58,7,58,23],[59,4,59,6],[59,7,59,23],[60,7,60,23],[69,4,69,23],[70,4,70,23],[71,4,71,23],[72,4,72,23],[73,4,73,23],[74,4,74,23],[75,4,75,23],[76,4,76,23],[78,4,78,23],[79,4,79,7],[79,8,79,23],[80,4,80,6],[80,7,80,23],[81,4,81,6],[81,7,81,23],[82,4,82,6],[82,7,82,23],[83,7,83,23],[97,4,97,23],[99,5,99,18],[101,5,101,23]]}
[{"$nulls":26}," (требуется обновление)"]
[null,{"$f":"\"Код шаблона: \" & GetCode()","v":"Код шаблона: JKH.OPEN.INFO.PRICE.WARM"}]
[null,{"$f":"\"Версия \" & GetVersion()","v":"Версия 6.1"}]
[]
[null,"Показатели, подлежащие раскрытию в сфере теплоснабжения и сфере оказания услуг по передаче тепловой энергии (цены и тарифы)"]
[]
[{"$nulls":4},"• На рабочем месте должен быть установлен MS Office 2003 SP3, 2007 SP3, 2010 с полной версией MS Excel\n\n• Макросы во время работы должны быть включены (!)\n\n• Для корректной работы отчёта требуется выбрать низкий уровень безопасности\n(В меню MS Excel 2003: Сервис | Макрос | Безопасность | выбрать пункт «Низкая безопасность» | OK)\n(В меню MS Excel 2007/2010: Параметры Excel | Центр управления безопасностью | Параметры центра управления безопасностью | Параметры макросов | Включить все макросы | ОК)\n\n• Если Вы работаете в табличном процессоре MS Excel 2007 и выше, то можете использовать для работы формат XLSM (Книга Excel с поддержкой макросов). При работе в формате XLSM заметно быстрее происходит сохранение файла, а также уменьшается размер по сравнению с форматом XLS\n\n• Не рекомендуется снимать защиту с листов и каким-либо образом модифицировать защищаемые формулы и расчётные поля, в противном случае, отчёт будет отклонён системой\n\n• При сохранении не следует выбирать формат XLSX (Книга Excel), так как в указанном формате макросы, необходимые для работы отчёта, безвозвратно удаляются"]
{"$rows_empty":13}
[{"$nulls":4},"A"," - необязательные для заполнения",{"$nulls":8},"A"," - с формулами и константами"]
[{"$nulls":4},"A"," - обязательные для заполнения",{"$nulls":8},"A"," - с выбором значений до двойному клику,"]
[{"$nulls":15},"либо с возможностью выбора даты из календаря или ручного ввода"]
{"$rows_empty":11}
[{"$nulls":4},"Если в предложенном Вам списке необходимая организация, МР/МО отсутствуют, обновите реестры с помощью кнопок\n\nВ результате синхронизации с базой данных список организаций (МР/МО) будет заменён актуальным (механизм синхронизации требует подключения к сети Интернет и основан на использовании протокола HTTPS (TCP порт 443))\n\nЕсли после обновления Вам не удалось найти необходимую организацию в списке, обратитесь к ответственному за поддержание реестра Вашего региона. Информация о региональных органах регулирования доступна по ссылке:"]
[]
[]
[]
[]
[{"$nulls":4},"http://www.fstrf.ru/regions/region/showlist"]
[]
[]
[]
[]
[]
[{"$nulls":4},"• При сохранении шаблона осуществляется проверка корректности данных, в том числе на наличие значений в ячейках, обязательных для заполнения\n\n• Если какая-то ячейка не удовлетворяет условию проверки, на лист «Проверка» добавляется гиперссылка на данную ячейку и указывается причина ошибки\n\n• В колонке «Статус» для каждого сообщения возможны 2 значения: ошибка и предупреждение\n\n• При наличии сообщений со статусом «Ошибка» шаблон будет отклонён системой и не будет загружен в хранилище данных, сообщения со статусом «Предупреждение» носят информационный характер, и такой шаблон будет принят системой"]
{"$rows_empty":11}
[{"$nulls":4},"Web-сайт:",null,null,"http://support.eias.ru/index.php?a=add&catid=5"]
[{"$nulls":4},"Дистрибутивы:",null,null,"http://eias.ru/?page=show_distrs"]
[{"$nulls":7},"для устранения ошибок (например, \"Compile error in hidden module\")"]
{"$rows_empty":9}
[{"$nulls":4},"Принципы работы с шаблоном"]
[{"$nulls":4},"Перед началом работы с шаблоном Вам необходимо нажать кнопку \"Приступить к заполнению\", после чего на форме выбора выбрать из выпадающего списка нужный субъект РФ. После выбора субъекта РФ в шаблоне отобразятся листы для заполнения."]
[{"$nulls":4},"На листе «Титульный» нужно заполнить все ячейки голубого и синего цвета.\nДля создания печатной формы нажмите на иконку принтера на листе «Титульный» (левый верхний угол)."]
[{"$nulls":4},"Гиперссылки на листах вводите, не нарушая цвет ячейки (если копируете гиперссылку из браузера, то выполните двойной щелчок левой кнопки мыши по ячейке и только после этого можете вставить скопированный элемент)."]
[{"$nulls":4},"При вводе даты на расчетных листах необходимо выбрать дату из календаря (иконка справа от выбранной ячейки), либо ввести дату непосредственно в ячейку в формате - 'ДД.ММ.ГГГГ'."]
[{"$nulls":4},"Если какой-либо из показателей на расчетных листах для Вашей организации отсутствует, введите в поле, обязательное для заполнение, «0» (для числовых показателей) и «-» (для текстовых)."]
[{"$nulls":4},"Внимательно следите за информационными сообщениями на расчетных листах."]
[{"$nulls":4},"Все необходимые комментарии по всем формам Вы можете отразить на листе «Комментарии»."]
[]
[{"$nulls":4}," Обосновывающие материалы необходимо загружать с помощью \"ЕИАС Мониторинг\""]
[{"$nulls":4},"Инструкция",{"$nulls":3},"http://eias.ru/files/shablon/manual_loading_through_monitoring.pdf"]
[]
[{"$nulls":4},"E-mail:",null,null,"openinfo@eias.ru"]
[{"$nulls":4},"Web-сайт:",null,null,"http://eias.ru/?page=show_templates"]
{"$rows_empty":14}
[{"$nulls":4},"При наличии подключения к Интернет, можно автоматически проверять наличие доступных обновлений. Выберите способ оповещения о наличии обновлений для отчёта:"]
[]
[{"$nulls":5},"проверять доступные обновления (рекомендуется)",{"$nulls":20},"y"]
[]
[{"$nulls":5},"никогда не проверять наличие обновлений (не рекомендуется)"]

{"sheet":"Лог обновления","index":1,"n_rows":82,"n_cols":3,"rows_kept":82,"hidden":true}
["Дата/Время","Сообщение","Статус"]
[]
["2014-12-23T15:48:57","Проверка доступных обновлений...","Информация"]
["2014-12-23T15:48:58","Версия шаблона 6.1 актуальна, обновление не требуется","Информация"]
["2014-12-23T15:50:16","Проверка доступных обновлений...","Информация"]
["2014-12-23T15:50:16","Версия шаблона 6.1 актуальна, обновление не требуется","Информация"]
["2014-12-23T16:02:06","Проверка доступных обновлений...","Информация"]
["2014-12-23T16:02:06","Версия шаблона 6.1 актуальна, обновление не требуется","Информация"]
["2014-12-26T08:24:35","Проверка доступных обновлений...","Информация"]
["2014-12-26T08:24:36","Версия шаблона 6.1 актуальна, обновление не требуется","Информация"]
["2015-01-19T11:07:25","Проверка доступных обновлений...","Информация"]
["2015-01-19T11:07:25","Версия шаблона 6.1 актуальна, обновление не требуется","Информация"]
["2015-12-08T13:55:47","Проверка доступных обновлений...","Информация"]
["2015-12-08T13:55:47","Версия шаблона 6.1 актуальна, обновление не требуется","Информация"]
["2015-12-08T15:58:13","Проверка доступных обновлений...","Информация"]
["2015-12-08T15:58:13","Версия шаблона 6.1 актуальна, обновление не требуется","Информация"]
["2015-12-08T16:11:50","Проверка доступных обновлений...","Информация"]
["2015-12-08T16:11:50","Версия шаблона 6.1 актуальна, обновление не требуется","Информация"]
["2015-12-08T16:16:01","Проверка доступных обновлений...","Информация"]
["2015-12-08T16:16:01","Версия шаблона 6.1 актуальна, обновление не требуется","Информация"]
["2015-12-09T08:19:43","Проверка доступных обновлений...","Информация"]
["2015-12-09T08:19:44","Версия шаблона 6.1 актуальна, обновление не требуется","Информация"]
["2015-12-09T08:55:13","Проверка доступных обновлений...","Информация"]
["2015-12-09T08:55:13","Версия шаблона 6.1 актуальна, обновление не требуется","Информация"]
["2015-12-09T09:49:28","Проверка доступных обновлений...","Информация"]
["2015-12-09T09:49:28","Версия шаблона 6.1 актуальна, обновление не требуется","Информация"]
["2015-12-09T11:17:59","Проверка доступных обновлений...","Информация"]
["2015-12-09T11:18:00","Версия шаблона 6.1 актуальна, обновление не требуется","Информация"]
["2016-12-26T17:22:39","Проверка доступных обновлений...","Информация"]
["2016-12-26T17:22:40","Версия шаблона 6.1 актуальна, обновление не требуется","Информация"]
["2016-12-28T13:39:17","Проверка доступных обновлений...","Информация"]
["2016-12-28T13:39:17","Версия шаблона 6.1 актуальна, обновление не требуется","Информация"]
["2016-12-29T09:10:33","Проверка доступных обновлений...","Информация"]
["2016-12-29T09:10:33","Версия шаблона 6.1 актуальна, обновление не требуется","Информация"]
["2016-12-29T12:17:37","Проверка доступных обновлений...","Информация"]
["2016-12-29T12:17:38","Версия шаблона 6.1 актуальна, обновление не требуется","Информация"]
["2017-07-04T15:38:48","Проверка доступных обновлений...","Информация"]
["2017-07-04T15:38:50","Версия шаблона 6.1 актуальна, обновление не требуется","Информация"]
["2017-07-05T14:19:05","Проверка доступных обновлений...","Информация"]
["2017-07-05T14:19:09","Версия шаблона 6.1 актуальна, обновление не требуется","Информация"]
["2017-07-06T15:13:39","Проверка доступных обновлений...","Информация"]
["2017-07-06T15:13:41","Версия шаблона 6.1 актуальна, обновление не требуется","Информация"]
["2017-07-07T14:20:57","Проверка доступных обновлений...","Информация"]
["2017-07-07T14:20:59","Версия шаблона 6.1 актуальна, обновление не требуется","Информация"]
["2017-07-10T17:28:54","Проверка доступных обновлений...","Информация"]
["2017-07-10T17:28:56","Нет доступных обновлений для шаблона с кодом JKH.OPEN.INFO.PRICE.WARM!","Информация"]
["2017-07-10T17:41:34","Проверка доступных обновлений...","Информация"]
["2017-07-10T17:41:36","Нет доступных обновлений для шаблона с кодом JKH.OPEN.INFO.PRICE.WARM!","Информация"]
["2017-07-11T11:38:53","Проверка доступных обновлений...","Информация"]
["2017-07-11T11:38:55","Нет доступных обновлений для шаблона с кодом JKH.OPEN.INFO.PRICE.WARM!","Информация"]
["2017-07-12T11:10:09","Проверка доступных обновлений...","Информация"]
["2017-07-12T11:10:11","Нет доступных обновлений для шаблона с кодом JKH.OPEN.INFO.PRICE.WARM!","Информация"]
["2018-01-09T14:35:58","Проверка доступных обновлений...","Информация"]
["2018-01-09T14:35:58","Нет доступных обновлений для шаблона с кодом JKH.OPEN.INFO.PRICE.WARM!","Информация"]
["2018-01-10T09:15:44","Проверка доступных обновлений...","Информация"]
["2018-01-10T09:15:44","Нет доступных обновлений для шаблона с кодом JKH.OPEN.INFO.PRICE.WARM!","Информация"]
["2018-01-11T10:20:36","Проверка доступных обновлений...","Информация"]
["2018-01-11T10:20:36","Нет доступных обновлений для шаблона с кодом JKH.OPEN.INFO.PRICE.WARM!","Информация"]
["2018-01-12T15:19:10","Проверка доступных обновлений...","Информация"]
["2018-01-12T15:19:10","Нет доступных обновлений для шаблона с кодом JKH.OPEN.INFO.PRICE.WARM!","Информация"]
["2018-01-15T14:18:37","Проверка доступных обновлений...","Информация"]
["2018-01-15T14:18:37","Нет доступных обновлений для шаблона с кодом JKH.OPEN.INFO.PRICE.WARM!","Информация"]
["2018-01-16T09:29:04","Проверка доступных обновлений...","Информация"]
["2018-01-16T09:29:04","Нет доступных обновлений для шаблона с кодом JKH.OPEN.INFO.PRICE.WARM!","Информация"]
["2018-01-17T11:12:02","Проверка доступных обновлений...","Информация"]
["2018-01-17T11:12:03","Нет доступных обновлений для шаблона с кодом JKH.OPEN.INFO.PRICE.WARM!","Информация"]
["2018-01-18T15:44:55","Проверка доступных обновлений...","Информация"]
["2018-01-18T15:44:55","Нет доступных обновлений для шаблона с кодом JKH.OPEN.INFO.PRICE.WARM!","Информация"]
["2018-01-18T15:56:20","Проверка доступных обновлений...","Информация"]
["2018-01-18T15:56:21","Нет доступных обновлений для шаблона с кодом JKH.OPEN.INFO.PRICE.WARM!","Информация"]
["2018-01-19T08:18:06","Проверка доступных обновлений...","Информация"]
["2018-01-19T08:18:07","Нет доступных обновлений для шаблона с кодом JKH.OPEN.INFO.PRICE.WARM!","Информация"]
["2018-01-19T13:57:56","Проверка доступных обновлений...","Информация"]
["2018-01-19T13:57:56","Нет доступных обновлений для шаблона с кодом JKH.OPEN.INFO.PRICE.WARM!","Информация"]
["2018-05-07T15:44:15","Проверка доступных обновлений...","Информация"]
["2018-05-07T15:44:15","Нет доступных обновлений для шаблона с кодом JKH.OPEN.INFO.PRICE.WARM!","Информация"]
["2018-05-07T15:54:55","Проверка доступных обновлений...","Информация"]
["2018-05-07T15:54:56","Нет доступных обновлений для шаблона с кодом JKH.OPEN.INFO.PRICE.WARM!","Информация"]
["2018-05-08T15:38:32","Проверка доступных обновлений...","Информация"]
["2018-05-08T15:38:32","Нет доступных обновлений для шаблона с кодом JKH.OPEN.INFO.PRICE.WARM!","Информация"]
["2018-05-08T15:52:38","Проверка доступных обновлений...","Информация"]
["2018-05-08T15:52:38","Нет доступных обновлений для шаблона с кодом JKH.OPEN.INFO.PRICE.WARM!","Информация"]

{"sheet":"Титульный","index":2,"n_rows":54,"n_cols":6,"rows_kept":54,"merged":[[4,4,4,5]]}
[{"$nulls":5},30919929]
[]
[]
[{"$nulls":5},{"$f":"version","v":"Версия 6.1"}]
[{"$nulls":4},"Показатели, подлежащие раскрытию в сфере теплоснабжения и сфере оказания услуг по передаче тепловой энергии (цены и тарифы)"]
[]
[{"$nulls":4},"Субъект РФ","Тюменская область"]
[]
[{"$nulls":4},"Публикация","На сайте регулирующего органа"]
[]
[{"$nulls":4},"По желанию организации информация раскрыта в дополнительных источниках публикации?","да"]
[]
[{"$nulls":5},"Период регулирования"]
[{"$nulls":4},"Начало очередного периода регулирования","01.01.2018"]
[{"$nulls":4},"Окончание очередного периода регулирования","31.12.2018"]
[]
[{"$nulls":4},"Является ли данное юридическое лицо подразделением (филиалом) другой организации","нет"]
[]
[{"$nulls":4},"Наименование организации","АО \"УСТЭК\""]
[{"$nulls":4},"Наименование филиала"]
[{"$nulls":4},"ИНН","7203420973"]
[{"$nulls":4},"КПП","720301001"]
[]
[{"$nulls":4},"Вид деятельности","производство (некомбинированная выработка)+передача+сбыт"]
[]
[{"$nulls":4},"Тариф","тариф на тепловую энергию (мощность)"]
[]
[{"$nulls":4},"Режим налогообложения","общий"]
[]
[{"$nulls":5},"НДС (Отметка об учтенном НДС)"]
[{"$nulls":4},"Организации-перепродавцы","тариф не утверждался"]
[{"$nulls":4},"Бюджетные потребители","тариф не утверждался"]
[{"$nulls":4},"Население","тариф с НДС организаций-плательщиков НДС"]
[{"$nulls":4},"Прочие","тариф не утверждался"]
[]
[{"$nulls":4},"Наличие двухставочного тарифа","нет"]
[]
[{"$nulls":5},"Адрес регулируемой организации"]
[{"$nulls":4},"Юридический адрес","625023, Тюменская область, г.Тюмень, ул.Одесская,д.5"]
[{"$nulls":4},"Почтовый адрес","625023, Тюменская область, г.Тюмень, ул.Одесская,д.5"]
[]
[{"$nulls":5},"Руководитель"]
[{"$nulls":4},"Фамилия, имя, отчество","Перекальский Александр Евгеньевич "]
[{"$nulls":4},"(код) номер телефона","8 (3452) 38-61-66"]
[]
[{"$nulls":5},"Главный бухгалтер"]
[{"$nulls":4},"Фамилия, имя, отчество","Янева Елена Александровна"]
[{"$nulls":4},"(код) номер телефона","8 (3452) 38-61-58"]
[]
[{"$nulls":5},"Должностное лицо, ответственное за составление формы"]
[{"$nulls":4},"Фамилия, имя, отчество","Покровская Екатерина Валерьевна"]
[{"$nulls":4},"Должность","Начальник сетора тарифообразования"]
[{"$nulls":4},"(код) номер телефона","8 (3452) 38-61-13"]
[{"$nulls":4},"e-mail","PokrovskayaEV@AO-USTEK.RU"]

{"sheet":"Список МО","index":3,"n_rows":16,"n_cols":8,"rows_kept":16,"merged":[[3,3,3,7],[4,3,4,7],[6,5,6,7],[7,5,7,7],[8,5,8,7],[13,3,14,3],[13,4,14,4]]}
[]
[]
[]
[{"$nulls":3},"Дифференциация тарифа"]
[{"$nulls":3},{"$f":"IF(org=0,\"Не определено\",org)","v":"АО \"УСТЭК\""}]
[]
[{"$nulls":5},"Система теплоснабжения"]
[{"$nulls":4},"Условный порядковый номер",7]
[{"$nulls":4},"Описание","Льготные тарифы на тепловую энергию для населения г. Тюмени для потребителей, подключенных к котельной, эксплуатируемой ООО \"Технолог\" до 01.01.2018"]
[]
[{"$nulls":3},"№ п/п","Муниципальный район","№ п/п","Муниципальное образование","ОКТМО"]
[{"$nulls":3},"1","2","3","4","5"]
[{"$nulls":3},0,null,0]
[{"$nulls":3},1,"город Тюмень",1,"город Тюмень","71701000"]
[{"$nulls":6},"Добавить МО"]
[{"$nulls":4},"Добавить МР"]

{"sheet":"ТЭ","index":4,"n_rows":25,"n_cols":26,"rows_kept":25,"merged":[[4,4,4,25],[5,4,5,25],[7,4,10,4],[7,5,10,6],[7,7,7,18],[7,19,9,20],[7,21,9,22],[7,23,10,23],[7,24,10,24],[7,25,10,25],[8,7,8,9],[8,10,8,12],[8,13,8,15],[8,16,8,18],[9,7,10,7],[9,8,9,9],[9,10,10,10],[9,11,9,12],[9,13,10,13],[9,14,9,15],[9,16,10,16],[9,17,9,18],[11,5,11,6],[13,0,15,0],[13,1,14,1],[13,4,14,4],[13,5,14,5],[13,19,15,19],[13,20,15,20],[13,21,20,21],[13,22,20,22],[13,23,20,23],[13,24,20,24],[13,25,20,25],[16,0,20,0],[16,1,17,1],[16,4,17,4],[16,5,17,5],[16,19,20,19],[16,20,20,20],[18,1,19,1],[18,4,19,4],[18,5,19,5],[21,5,21,20],[23,5,23,25],[24,5,24,25]]}
[]
[]
[]
[]
[{"$nulls":4},"Информация о ценах (тарифах) на тепловую энергию (мощность)*"]
[{"$nulls":4},{"$f":"IF(org=0,\"Не определено\",org)","v":"АО \"УСТЭК\""}]
[]
[{"$nulls":4},"№ п/п","Цена (тариф)",null,"Величина установленной цены (тарифа) на тепловую энергию (мощность)",{"$nulls":11},"Срок действия цены (тарифа) на тепловую энергию (мощность)",null,"Реквизиты решения об установлении цен (тарифов) на тепловую энергию (мощность)",null,"Наименование органа регулирования, принявшего решение об установлении цен (тарифов) на тепловую энергию (мощность)","Источник официального опубликования решения об установлении цен (тарифов) на тепловую энергию (мощность)","Примечание"]
[{"$nulls":7},"Организации-перепродавцы",null,null,"Бюджетные потребители",null,null,"Население",null,null,"Прочие"]
[{"$nulls":7},"Одноставочный тариф, руб./Гкал","Двухставочный тариф",null,"Одноставочный тариф, руб./Гкал","Двухставочный тариф",null,"Одноставочный тариф, руб./Гкал","Двухставочный тариф",null,"Одноставочный тариф, руб./Гкал","Двухставочный тариф"]
[{"$nulls":8},"ставка за энергию, руб./Гкал","ставка за содержание, тыс.руб./Гкал/ч/мес",null,"ставка за энергию, руб./Гкал","ставка за содержание, тыс.руб./Гкал/ч/мес",null,"ставка за энергию, руб./Гкал","ставка за содержание, тыс.руб./Гкал/ч/мес",null,"ставка за энергию, руб./Гкал","ставка за содержание, тыс.руб./Гкал/ч/мес","дата начала","дата окончания","дата","номер"]
[{"$nulls":4},"1","2",null,"3","4","5","6","7","8","9","10","11","12","13","14","15","16","17","18","19","20","21"]
[{"$nulls":5},"Вид теплоносителя","x"]
["1",1,null,null,{"$f":"A14&\".\"&B14","v":"1.1"},"горячая вода","через тепловую сеть",{"$nulls":6},996.84,{"$nulls":5},"01.01.2018","30.06.2018","27.12.2017","778/01-21\n","Департамент тарифной и ценовой политики Тюменской области","https://www.admtyumen.ru/ogv_ru/gov/administrative/tarif_department/npa.htm?f=51&blk=11131643","Указаны льготные тарифы на тепловую энергию для населения г. Тюмени \nДля потребителей, подключенных к системам теплоснабжения: \n\nп.1.1, п.2.1 - Котельная, экплуатируемая ООО \"Технолог\" до 01.01.2018. Население в жилищном фонде, введенном в эксплуатацию по 30.06.2017 включительно;\n\nп.2.2 - Котельная, экплуатируемая ООО \"Технолог\" до 01.01.2018. Население в жилищном фонде, введенном в эксплуатацию с 01.07.2017 по 30.06.2018 включительно\n"]
[{"$nulls":6},"отпуск с коллекторов"]
[{"$nulls":5},"Добавить вид теплоносителя"]
["2",1,"О",null,{"$f":"A17&\".\"&B17","v":"2.1"},"горячая вода","через тепловую сеть",{"$nulls":6},{"v":1041.7,"d":"1,041.70"},{"$nulls":5},"01.07.2018","31.12.2018"]
[{"$nulls":6},"отпуск с коллекторов"]
[null,2,null,"О",{"$f":"A17 & \".\" & B19","v":"2.2"},"горячая вода","через тепловую сеть",{"$nulls":6},{"v":1053.68,"d":"1,053.68"}]
[{"$nulls":6},"отпуск с коллекторов"]
[{"$nulls":5},"Добавить вид теплоносителя"]
[{"$nulls":5},"Добавить период"]
[]
[{"$nulls":4},"*","заполняется на основании решения соответствующего органа регулирования тарифов об установлении тарифов по регулируемому виду деятельности"]
[{"$nulls":5},"информация раскрывается только по системе теплоснабжения, указанной на листе \"Список МО\""]

{"sheet":"Теплоноситель","index":5,"n_rows":17,"n_cols":17,"rows_kept":17,"hidden":true,"merged":[[4,4,4,16],[5,4,5,16],[7,4,10,4],[7,5,10,5],[7,6,7,9],[7,10,9,11],[7,12,9,13],[7,14,10,14],[7,15,10,15],[7,16,10,16],[9,6,10,6],[9,7,10,7],[9,8,10,8],[9,9,10,9],[13,5,13,11],[15,5,15,16],[16,5,16,16]]}
[]
[]
[]
[]
[{"$nulls":4},"Информация о ценах (тарифах) на теплоноситель*"]
[{"$nulls":4},{"$f":"IF(org=0,\"Не определено\",org)","v":"АО \"УСТЭК\""}]
[]
[{"$nulls":4},"№ п/п","Вид теплоносителя","Величина установленной цены (тарифа) на теплоноситель",{"$nulls":3},"Срок действия цены (тарифа) на теплоноситель",null,"Реквизиты решения об установлении цен (тарифов) на теплоноситель",null,"Наименование органа регулирования, принявшего решение об установлении цен (тарифов) на теплоноситель","Источник официального опубликования решения об установлении цен (тарифов) на теплоноситель","Примечание"]
[{"$nulls":6},"Организации-перепродавцы","Бюджетные потребители","Население","Прочие"]
[{"$nulls":6},"Одноставочный тариф, руб./куб.м","Одноставочный тариф, руб./куб.м","Одноставочный тариф, руб./куб.м","Одноставочный тариф, руб./куб.м"]
[{"$nulls":10},"дата начала","дата окончания","дата","номер"]
[{"$nulls":4},"1","1.1","2","3","4","5","6","7","8","9","10","11","12"]
[{"$nulls":4},"1"]
[{"$nulls":5},"Добавить период"]
[]
[{"$nulls":4},"*","заполняется на основании решения соответствующего органа регулирования тарифов об установлении тарифов по регулируемому виду деятельности"]
[{"$nulls":5},"информация раскрывается только по системе теплоснабжения, указанной на листе \"Список МО\""]

{"sheet":"Передача ТЭ","index":6,"n_rows":17,"n_cols":26,"rows_kept":17,"hidden":true,"merged":[[4,4,4,25],[5,4,5,25],[7,4,10,4],[7,5,10,5],[7,6,10,6],[7,7,7,18],[7,19,9,20],[7,21,9,22],[7,23,10,23],[7,24,10,24],[7,25,10,25],[8,7,8,9],[8,10,8,12],[8,13,8,15],[8,16,8,18],[9,7,10,7],[9,8,9,9],[9,10,10,10],[9,11,9,12],[9,13,10,13],[9,14,9,15],[9,16,10,16],[9,17,9,18],[13,5,13,20],[15,5,15,25],[16,5,16,25]]}
[]
[]
[]
[]
[{"$nulls":4},"Информация о ценах (тарифах) на услуги по передаче тепловой энергии, теплоноситель *"]
[{"$nulls":4},{"$f":"IF(org=0,\"Не определено\",org)","v":"АО \"УСТЭК\""}]
[]
[{"$nulls":4},"№ п/п","Ед.изм. тарифа на передачу тепловой энергии, теплоноситель","Вид теплоносителя","Величина установленной цены (тарифа) на услуги по передаче тепловой энергии (мощности), теплоноситель",{"$nulls":11},"Срок действия цены (тарифа) на услуги по передаче тепловой энергии (мощности), теплоноситель",null,"Реквизиты решения об установлении цен (тарифов) на услуги по передаче тепловой энергии (мощности), теплоноситель",null,"Наименование органа регулирования, принявшего решение об установлении цен (тарифов) на услуги по передаче тепловой энергии (мощности), теплоноситель","Источник официального опубликования решения об установлении цен (тарифов) на услуги по передаче тепловой энергии (мощности), теплоноситель","Примечание"]
[{"$nulls":7},"Организации-перепродавцы",null,null,"Бюджетные потребители",null,null,"Население",null,null,"Прочие"]
[{"$nulls":7},"Одноставочный тариф","Двухставочный тариф",null,"Одноставочный тариф","Двухставочный тариф",null,"Одноставочный тариф","Двухставочный тариф",null,"Одноставочный тариф","Двухставочный тариф"]
[{"$nulls":8},"ставка за энергию, руб./Гкал","ставка за содержание, тыс.руб./Гкал/ч/мес",null,"ставка за энергию, руб./Гкал","ставка за содержание, тыс.руб./Гкал/ч/мес",null,"ставка за энергию, руб./Гкал","ставка за содержание, тыс.руб./Гкал/ч/мес",null,"ставка за энергию, руб./Гкал","ставка за содержание, тыс.руб./Гкал/ч/мес","дата начала","дата окончания","дата","номер"]
[{"$nulls":4},"1","2.1","2.2","3","4","5","6","7","8","9","10","11","12","13","14","15","16","17","18","19","20","21"]
[{"$nulls":4},1]
[{"$nulls":5},"Добавить период"]
[]
[{"$nulls":4},"*","заполняется на основании решения соответствующего органа регулирования тарифов об установлении тарифов по регулируемому виду деятельности"]
[{"$nulls":5},"информация раскрывается только по системе теплоснабжения, указанной на листе \"Список МО\""]

{"sheet":"Резервная мощность","index":7,"n_rows":17,"n_cols":16,"rows_kept":17,"hidden":true,"merged":[[4,4,4,15],[5,4,5,15],[7,4,10,4],[7,5,7,8],[7,9,9,10],[7,11,9,12],[7,13,10,13],[7,14,10,14],[7,15,10,15],[9,5,10,5],[9,6,10,6],[9,7,10,7],[9,8,10,8],[13,5,13,10],[15,5,15,15],[16,5,16,15]]}
[]
[]
[]
[]
[{"$nulls":4},"Информация об утвержденной плате за услуги по поддержанию резервной тепловой мощности при отсутствии потребления тепловой энергии*"]
[{"$nulls":4},{"$f":"IF(org=0,\"Не определено\",org)","v":"АО \"УСТЭК\""}]
[]
[{"$nulls":4},"№ п/п","Величина утвержденной платы за услуги по поддержанию резервной тепловой мощности при отсутствии потребления тепловой энергии",{"$nulls":3},"Срок действия утвержденной платы за услуги по поддержанию резервной тепловой мощности при отсутствии потребления тепловой энергии",null,"Реквизиты решения об утверждении платы за услуги по поддержанию резервной тепловой мощности при отсутствии потребления тепловой энергии",null,"Наименование органа регулирования, принявшего решение об утверждении платы за услуги по поддержанию резервной тепловой мощности при отсутствии потребления тепловой энергии","Источник официального опубликования решения об утверждении платы за услуги по поддержанию резервной тепловой мощности при отсутствии потребления тепловой энергии","Примечание"]
[{"$nulls":5},"Организации-перепродавцы","Бюджетные потребители","Население","Прочие"]
[{"$nulls":5},"Одноставочный тариф, руб./Гкал/ч/мес","Одноставочный тариф, руб./Гкал/ч/мес","Одноставочный тариф, руб./Гкал/ч/мес","Одноставочный тариф, руб./Гкал/ч/мес"]
[{"$nulls":9},"дата начала","дата окончания","дата","номер"]
[{"$nulls":4},"1","2","3","4","5","6","7","8","9","10","11","12"]
[{"$nulls":4},"1"]
[{"$nulls":5},"Добавить период"]
[]
[{"$nulls":4},"*","заполняется на основании решения соответствующего органа регулирования тарифов об установлении тарифов по регулируемому виду деятельности"]
[{"$nulls":5},"информация раскрывается только по системе теплоснабжения, указанной на листе \"Список МО\""]

{"sheet":"Подключение","index":8,"n_rows":17,"n_cols":16,"rows_kept":17,"hidden":true,"merged":[[4,4,4,15],[5,4,5,15],[7,4,10,4],[7,5,7,8],[7,9,9,10],[7,11,9,12],[7,13,10,13],[7,14,10,14],[7,15,10,15],[9,5,10,5],[9,6,10,6],[9,7,10,7],[9,8,10,8],[13,5,13,10],[15,5,15,15],[16,5,16,15]]}
[]
[]
[]
[]
[{"$nulls":4},"Информация об утвержденной плате за подключение (технологическое присоединение) к системе теплоснабжения*"]
[{"$nulls":4},{"$f":"IF(org=0,\"Не определено\",org)","v":"АО \"УСТЭК\""}]
[]
[{"$nulls":4},"№ п/п","Величина утвержденной платы за подключение (технологическое присоединение) к системе теплоснабжения",{"$nulls":3},"Срок действия утвержденной платы за подключение (технологическое присоединение) к системе теплоснабжения",null,"Реквизиты решения об утверждении платы за подключение (технологическое присоединение) к системе теплоснабжения",null,"Наименование органа регулирования, принявшего решение об утверждении платы за подключение (технологическое присоединение) к системе теплоснабжения","Источник официального опубликования решения об утверждении платы за подключение (технологическое присоединение) к системе теплоснабжения","Примечание"]
[{"$nulls":5},"Организации-перепродавцы","Бюджетные потребители","Население","Прочие"]
[{"$nulls":5},"Одноставочный тариф, тыс.руб./Гкал/ч","Одноставочный тариф, тыс.руб./Гкал/ч","Одноставочный тариф, тыс.руб./Гкал/ч","Одноставочный тариф, тыс.руб./Гкал/ч"]
[{"$nulls":9},"дата начала","дата окончания","дата","номер"]
[{"$nulls":4},"1","2","3","4","5","6","7","8","9","10","11","12"]
[{"$nulls":4},"1"]
[{"$nulls":5},"Добавить период"]
[]
[{"$nulls":4},"*","заполняется на основании решения соответствующего органа регулирования тарифов об установлении тарифов по регулируемому виду деятельности"]
[{"$nulls":5},"информация раскрывается только по системе теплоснабжения, указанной на листе \"Список МО\""]

{"sheet":"Горячая вода (по компонентам)","index":9,"n_rows":23,"n_cols":27,"rows_kept":23,"hidden":true,"merged":[[4,4,4,26],[5,4,5,26],[7,4,10,4],[7,5,10,7],[7,8,7,19],[7,20,9,21],[7,22,9,23],[7,24,10,24],[7,25,10,25],[7,26,10,26],[8,8,8,10],[8,11,8,13],[8,14,8,16],[8,17,8,19],[9,8,10,8],[9,9,9,10],[9,11,10,11],[9,12,9,13],[9,14,10,14],[9,15,9,16],[9,17,10,17],[9,18,9,19],[11,5,11,7],[13,4,16,4],[13,5,13,7],[13,20,16,20],[13,21,16,21],[13,22,16,22],[13,23,16,23],[13,24,16,24],[13,25,16,25],[13,26,16,26],[15,5,15,7],[17,5,17,21],[19,5,19,25],[20,5,20,26],[21,5,21,26],[22,5,22,26]]}
[]
[]
[]
[]
[{"$nulls":4},"Информация об утвержденных тарифах на горячую воду, поставляемую теплоснабжающими организациями потребителям, другим теплоснабжающим организациям с использованием открытых систем теплоснабжения (горячего водоснабжения)*"]
[{"$nulls":4},{"$f":"IF(org=0,\"Не определено\",org)","v":"АО \"УСТЭК\""}]
[]
[{"$nulls":4},"№ п/п","Тариф",null,null,"Величина установленного тарифа на горячую воду ",{"$nulls":11},"Срок действия установленного тарифа на горячую воду",null,"Реквизиты решения об утверждении тарифа на горячую воду",null,"Наименование органа регулирования, принявшего решение об утверждении тарифа на горячую воду","Источник официального опубликования решения об установлении тарифа на горячую воду","Примечание"]
[{"$nulls":8},"Организации-перепродавцы",null,null,"Бюджетные потребители",null,null,"Население",null,null,"Прочие"]
[{"$nulls":8},"Одноставочный тариф","Двухставочный тариф",null,"Одноставочный тариф","Двухставочный тариф",null,"Одноставочный тариф","Двухставочный тариф",null,"Одноставочный тариф","Двухставочный тариф"]
[{"$nulls":9},"ставка за энергию, руб./Гкал","ставка за содержание, руб./Гкал/ч/мес",null,"ставка за энергию, руб./Гкал","ставка за содержание, руб./Гкал/ч/мес",null,"ставка за энергию, руб./Гкал","ставка за содержание, руб./Гкал/ч/мес",null,"ставка за энергию, руб./Гкал","ставка за содержание, руб./Гкал/ч/мес","дата начала","дата окончания","дата","номер"]
[{"$nulls":4},"1","2",null,null,"3","4","5","6","7","8","9","10","11","12","13","14","15","16","17","18","19","20","21"]
[]
[null,1,null,null,1,"Компонент на теплоноситель, руб./куб.м",{"$nulls":14},"","",""]
[{"$nulls":7},"Добавить поставщика теплоносителя"]
[null,1,{"$nulls":3},"Компонент на тепловую энергию, руб./Гкал"]
[{"$nulls":7},"Добавить поставщика тепловой энергии"]
[{"$nulls":5},"Добавить период"]
[]
[{"$nulls":4},"*","заполняется на основании решения соответствующего органа регулирования тарифов об установлении тарифов по регулируемому виду деятельности"]
[{"$nulls":5},"информация раскрывается только по системе теплоснабжения, указанной на листе \"Список МО\""]
[{"$nulls":4},"!","В шаблоне JKH.OPEN.INFO.PRICE.WARM cледует заполнять показатели только по горячей воде, поставляемой с использованием открытых систем теплоснабжения (горячего водоснабжения)."]
[{"$nulls":4},"!","В случае, если горячее водоснабжение осуществляется с использованием закрытых систем горячего водоснабжения - воспользуйтесь шаблоном JKH.OPEN.INFO.PRICE.GVS"]

{"sheet":"Горячая вода","index":10,"n_rows":19,"n_cols":24,"rows_kept":19,"hidden":true,"merged":[[4,4,4,23],[5,4,5,23],[7,4,10,4],[7,5,7,16],[7,17,9,18],[7,19,9,20],[7,21,10,21],[7,22,10,22],[7,23,10,23],[8,5,8,7],[8,8,8,10],[8,11,8,13],[8,14,8,16],[9,5,10,5],[9,6,9,7],[9,8,10,8],[9,9,9,10],[9,11,10,11],[9,12,9,13],[9,14,10,14],[9,15,9,16],[13,5,13,18],[15,5,15,23],[16,5,16,23],[17,5,17,23],[18,5,18,23]]}
[]
[]
[]
[]
[{"$nulls":4},"Информация об утвержденных тарифах на горячую воду, поставляемую теплоснабжающими организациями потребителям, другим теплоснабжающим организациям с использованием открытых систем теплоснабжения (горячего водоснабжения)*"]
[{"$nulls":4},{"$f":"IF(org=0,\"Не определено\",org)","v":"АО \"УСТЭК\""}]
[]
[{"$nulls":4},"№ п/п","Величина установленного тарифа на горячую воду ",{"$nulls":11},"Срок действия установленного тарифа на горячую воду",null,"Реквизиты решения об утверждении тарифа на горячую воду",null,"Наименование органа регулирования, принявшего решение об утверждении тарифа на горячую воду","Источник официального опубликования решения об установлении тарифа на горячую воду","Примечание"]
[{"$nulls":5},"Организации-перепродавцы",null,null,"Бюджетные потребители",null,null,"Население",null,null,"Прочие"]
[{"$nulls":5},"Одноставочный тариф, руб./куб.м","Двухставочный тариф",null,"Одноставочный тариф, руб./куб.м","Двухставочный тариф",null,"Одноставочный тариф, руб./куб.м","Двухставочный тариф",null,"Одноставочный тариф, руб./куб.м","Двухставочный тариф"]
[{"$nulls":6},"ставка за энергию, руб./Гкал","ставка за содержание, руб./Гкал/ч/мес",null,"ставка за энергию, руб./Гкал","ставка за содержание, руб./Гкал/ч/мес",null,"ставка за энергию, руб./Гкал","ставка за содержание, руб./Гкал/ч/мес",null,"ставка за энергию, руб./Гкал","ставка за содержание, руб./Гкал/ч/мес","дата начала","дата окончания","дата","номер"]
[{"$nulls":4},"1","2","3","4","5","6","7","8","9","10","11","12","13","14","15","16","17","18","19","20"]
[{"$nulls":4},1]
[{"$nulls":5},"Добавить период"]
[]
[{"$nulls":4},"*","заполняется на основании решения соответствующего органа регулирования тарифов об установлении тарифов по регулируемому виду деятельности"]
[{"$nulls":5},"информация раскрывается только по системе теплоснабжения, указанной на листе \"Список МО\""]
[{"$nulls":4},"!","В шаблоне JKH.OPEN.INFO.PRICE.WARM cледует заполнять показатели только по горячей воде, поставляемой с использованием открытых систем теплоснабжения (горячего водоснабжения)."]
[{"$nulls":4},"!","В случае, если горячее водоснабжение осуществляется с использованием закрытых систем горячего водоснабжения - воспользуйтесь шаблоном JKH.OPEN.INFO.PRICE.GVS"]

{"sheet":"Поставка","index":11,"n_rows":14,"n_cols":8,"rows_kept":14,"merged":[[4,3,4,7],[5,3,5,7]]}
[]
[]
[]
[]
[{"$nulls":3},"Информация об условиях, на которых осуществляется поставка регулируемых товаров (оказание регулируемых услуг).\nИнформация о порядке выполнения технологических, технических и других мероприятий, связанных с подключением (технологическим присоединением) к системе теплоснабжения"]
[{"$nulls":3},{"$f":"IF(org=0,\"Не определено\",org)","v":"АО \"УСТЭК\""}]
[]
[{"$nulls":3},"№ п/п","Информация, подлежащая раскрытию","Значение","Ссылки\nна документы","Примечание"]
[{"$nulls":3},"1","2","3","4","5"]
[{"$nulls":3},1,"сведения об условиях публичных договоров поставок регулируемых товаров (оказания регулируемых услуг), в том числе договоров о подключении (технологическом присоединении) к системе теплоснабжения","Типовые формы договров о теплоснабжении, в т.ч. договора о подключении к системе теплоснабжения \nhttps://ao-ustek.ru/potrebitelyam/zaklyuchenie-dogovora/","https://tariff.eias.ru/disclo/get_file?p_guid=a9b96721-f914-4320-a45f-aec9e00cdf50","-"]
[null,3,null,2,"форма заявки на подключение (технологическое присоединение) к системе теплоснабжения","Заявка о подключении к системе теплоснабжения\nhttps://ao-ustek.ru/potrebitelyam/podklyuchenie/","https://tariff.eias.ru/disclo/get_file?p_guid=df7c1fad-a1c3-4583-a6b6-880688c98cb1","-"]
[{"$nulls":3},3,"перечень документов и сведений, представляемых одновременно с заявкой на подключение (технологическое присоединение) к системе теплоснабжения","Перечень документов и сведений к заявке на подключение \nhttps://ao-ustek.ru/potrebitelyam/podklyuchenie/","https://tariff.eias.ru/disclo/get_file?p_guid=a0ef110b-1e9a-4884-b485-7ee01fd3e829","-"]
[null,3,null,4,"реквизиты нормативного правового акта, регламентирующего порядок действий заявителя и регулируемой организации при подаче, приеме, обработке заявки на подключение (технологическое присоединение) к системе теплоснабжения, принятии решения и уведомлении о принятом решении","Правила подключения к системам теплоснабжения, утвержденные постановлением Правительсва РФ от от 16 апреля 2012 г. N 307","https://tariff.eias.ru/disclo/get_file?p_guid=4464ac23-7235-4388-88a5-aeb1a8af60c4","-"]
[null,3,null,5,"телефоны и адреса службы, ответственной за прием и обработку заявок на подключение (технологическое присоединение) к системе теплоснабжения","Отдел перспективного развития и подключений АО \"УСТЭК\", \nтел.: +7 (3452) 28-97-86,\n+7 (3452) 28-97-35,\n625023, г.Тюмень, ул.Одесская 8, каб.201","https://tariff.eias.ru/disclo/get_file?p_guid=ee0fb9a1-41cc-4257-a7c3-7d62af0f63a9","-"]

{"sheet":"Ссылки на публикации","index":12,"n_rows":17,"n_cols":8,"rows_kept":17,"merged":[[4,3,4,7],[5,3,5,7],[10,0,11,0],[10,4,10,7],[12,0,13,0],[12,4,12,7],[14,0,15,0],[14,4,14,7]]}
[]
[]
[]
[]
[{"$nulls":3},"Ссылки на публикации"]
[{"$nulls":3},{"$f":"IF(org=0,\"Не определено\",org)","v":"АО \"УСТЭК\""}]
[]
[]
[{"$nulls":3},"№ п/п","Содержание","Наименование сайта","Дата размещения информации","Адрес страницы сайта в сети \"Интернет\", на которой размещена информация"]
[{"$nulls":3},"1","2","3","4","5"]
["1",null,null,{"$f":"A11","v":"1"},"Информация о ценах (тарифах) на регулируемые товары (услуги) (п.16 Постановления Правительства Российской Федерации от 05 июля 2013 г. N 570 \"О стандартах раскрытия информации теплоснабжающими организациями, теплосетевыми организациями и органами регулирования\")"]
[{"$nulls":3},{"$f":"A11&\".1\"","v":"1.1"},"Сайт организации в сети Интернет","официальный сайт регулируемой организации в сети Интернет","19.01.2018","https://ao-ustek.ru/ustek/raskrytie-informatsii/"]
["2",null,null,{"$f":"A13","v":"2"},"Информация об условиях, на которых осуществляется поставка регулируемых товаров (оказание регулируемых услуг) (п.24 Постановления Правительства Российской Федерации от 05 июля 2013 г. N 570 \"О стандартах раскрытия информации теплоснабжающими организациями, теплосетевыми организациями и органами регулирования\")"]
[{"$nulls":3},{"$f":"A13&\".1\"","v":"2.1"},"Сайт организации в сети Интернет","официальный сайт регулируемой организации в сети Интернет","19.01.2018","https://ao-ustek.ru/potrebitelyam/zaklyuchenie-dogovora/"]
["3",null,null,{"$f":"A15","v":"3"},"Информация о порядке выполнения технологических, технических и других мероприятий, связанных с подключением (технологическим присоединением) к системе теплоснабжения (п.25 Постановления Правительства Российской Федерации от 05 июля 2013 г. N 570 \"О стандартах раскрытия информации теплоснабжающими организациями, теплосетевыми организациями и органами регулирования\")"]
[{"$nulls":3},{"$f":"A15&\".1\"","v":"3.1"},"Сайт организации в сети Интернет","официальный сайт регулируемой организации в сети Интернет","19.01.2018","https://ao-ustek.ru/potrebitelyam/podklyuchenie/"]
[{"$nulls":4},"Добавить"]

{"sheet":"Комментарии","index":13,"n_rows":15,"n_cols":5,"rows_kept":15,"merged":[[6,3,6,4],[7,3,7,4]]}
[]
[]
[]
[]
[]
[]
[{"$nulls":3},"Комментарии"]
[{"$nulls":3},{"$f":"IF(org=0,\"Не определено\",org)","v":"АО \"УСТЭК\""}]
[]
[{"$nulls":3},"№ п/п","Комментарий"]
[{"$nulls":3},"1","2"]
[{"$nulls":3},0]
[null,null,"О",1,"В Примечании на листе \"ТЭ\" указаны группы потребителей , для которых установлены льготные тарифы на тепловую энергию, и соответствующие каждой группе номера пунктов по столбцу \"Е\". Тарифы указаны с НДС."]
[null,null,"О",2,"Распоряжением от 24.04.2018 № 78/01-21 внесены изменения в распоряжение от 27.12.2017 № 778/01-21\nhttps://admtyumen.ru/files/ogv_to/law/2017/%D1%80%D0%B0%D1%81%D0%BF%D0%BE%D1%80%D1%8F%D0%B6%D0%B5%D0%BD%D0%B8%D0%B5%2078.pdf"]
[{"$nulls":4},"Добавить"]

{"sheet":"Проверка","index":14,"n_rows":4,"n_cols":5,"rows_kept":4,"merged":[[1,1,1,4]]}
[]
[null,"Результат проверки"]
[]
[null,"Ссылка1","Ссылка2","Причина","Статус"]

{"sheet":"AllSheetsInThisWorkbook","index":15,"n_rows":25,"n_cols":2,"rows_kept":25,"hidden":true}
["Расчетные листы","Скрытые листы"]
["Инструкция","AllSheetsInThisWorkbook"]
["Лог обновления","TEHSHEET"]
["Титульный","et_union_hor"]
["Список МО","et_union_vert"]
["ТЭ","modInfo"]
["Теплоноситель","modRegion"]
["Передача ТЭ","modReestr"]
["Резервная мощность","modfrmReestr"]
["Подключение","modUpdTemplMain"]
["Горячая вода (по компонентам)","REESTR_ORG"]
["Горячая вода","modClassifierValidate"]
["Поставка","modProv"]
["Ссылки на публикации","modHyp"]
["Комментарии","modList00"]
["Проверка","modList01"]
[null,"modList02"]
[null,"modList03"]
[null,"modList11"]
[null,"modfrmDateChoose"]
[null,"modComm"]
[null,"modThisWorkbook"]
[null,"REESTR_MO"]
[null,"modfrmReestrMR"]
[null,"modfrmCheckUpdates"]

{"sheet":"TEHSHEET","index":16,"n_rows":85,"n_cols":14,"rows_kept":85,"hidden":true}
["REGION",null,"year_list","logical","Месяц\n(MONTH)","Квартал\n(QUARTER)","Месяц\n(kind_of_publication)","НДС\n/kind_of_NDS/","Номер СЦХВ(СЦВО)\n/SKI_number/","Единица измерения объема оказываемых услуг ГВС\n/kind_of_unit_GVS/","Метод регулирования\n/kind_of_control_method/","Вид деятельности, на которую установлен тариф /kind_of_activity_WARM/","виды тарифа\n/kind_group_rates/","Вид теплоносителя\n(kind_of_heat_transfer)"]
["Алтайский край",null,2013,"да","январь","I квартал","На официальном сайте организации","общий","1","тыс.куб.м/сутки","метод экономически обоснованных расходов (затрат)","Передача+Сбыт","тариф на тепловую энергию (мощность)","-"]
["Амурская область",null,2014,"нет","февраль","II квартал","На сайте регулирующего органа","общий с учетом освобождения от уплаты НДС","2","Гкал/ч","метод индексации установленных тарифов","Передача","тариф на теплоноситель","горячая вода"]
["Архангельская область",null,2015,null,"март","III квартал",null,"специальный (упрощенная система налогообложения, система налогообложения для сельскохозяйственных товаропроизводителей)","3","куб.м/ч","метод обеспечения доходности инвестированного капитала","производство комбинированная выработка","тариф на услуги по передаче тепловой энергии, теплоноситель","пар"]
["Астраханская область",null,2016,null,"апрель","IV квартал",null,null,"4",null,"метод сравнения аналогов","производство (некомбинированная выработка)+передача+сбыт","плата за услуги по поддержанию резервной тепловой мощности при отсутствии потребления тепловой энергии","отборный пар, 1,2-2,5 кг/см2"]
["Белгородская область",null,2017,null,"май",null,"НДС общий\n/kind_of_NDS_tariff/","НДС\n/kind_of_NDS_tariff/","5","Вид тарифа на передачу тепловой энергии /kind_of_tariff_unit/",null,"производство (некомбинированная выработка)+передача","плата за подключение (технологическое присоединение) к системе теплоснабжения","отборный пар, 2,5-7 кг/см2"]
["Брянская область",{"$nulls":3},"июнь",null,"тариф указан с НДС для плательщиков НДС","тариф для организаций не являющихся плательщиками НДС","6","руб./Гкал/ч/мес",null,"производство (некомбинированная выработка)+сбыт","тариф на горячую воду, поставляемую с использованием открытых систем теплоснабжения (горячего водоснабжения)","отборный пар, 7-13 кг/см2"]
["Владимирская область",{"$nulls":3},"июль",null,"тариф указан без НДС для плательщиков НДС","тариф не утверждался","7","руб./Гкал",null,"производство (некомбинированная выработка)",null,"отборный пар, > 13 кг/см2"]
["Волгоградская область",{"$nulls":3},"август",null,"тариф не утверждался",null,"8",{"$nulls":4},"острый редуцированный пар"]
["Вологодская область",{"$nulls":3},"сентябрь",{"$nulls":3},"9",{"$nulls":4},"горячая вода в системе централизованного теплоснабжения на отопление"]
["Воронежская область",{"$nulls":3},"октябрь",{"$nulls":3},"10",{"$nulls":4},"горячая вода в системе централизованного теплоснабжения на горячее водоснабжение"]
["г.Байконур",{"$nulls":3},"ноябрь",null,"НДС общий люди\n/kind_of_NDS_tariff_people/","НДС\n/kind_of_NDS_tariff_people/","11",{"$nulls":4},"другой"]
["г. Москва",{"$nulls":3},"декабрь",null,"тариф с НДС организаций-плательщиков НДС","тариф организаций не являющихся плательщиками НДС","12"]
["г.Санкт-Петербург",{"$nulls":5},"тариф не утверждался","тариф не утверждался","13"]
["Еврейская автономная область",{"$nulls":7},"14"]
["Забайкальский край",{"$nulls":7},"15"]
["Ивановская область",{"$nulls":7},"16"]
["Иркутская область",{"$nulls":7},"17"]
["Кабардино-Балкарская республика",{"$nulls":7},"18"]
["Калининградская область",{"$nulls":7},"19"]
["Калужская область",{"$nulls":7},"20"]
["Камчатский край"]
["Карачаево-Черкесская республика"]
["Кемеровская область"]
["Кировская область"]
["Костромская область"]
["Краснодарский край"]
["Красноярский край"]
["Курганская область"]
["Курская область"]
["Ленинградская область"]
["Липецкая область"]
["Магаданская область"]
["Московская область"]
["Мурманская область"]
["Ненецкий автономный округ"]
["Нижегородская область"]
["Новгородская область"]
["Новосибирская область"]
["Омская область"]
["Оренбургская область"]
["Орловская область"]
["Пензенская область"]
["Пермский край"]
["Приморский край"]
["Псковская область"]
["Республика Адыгея"]
["Республика Алтай"]
["Республика Башкортостан"]
["Республика Бурятия"]
["Республика Дагестан"]
["Республика Ингушетия"]
["Республика Калмыкия"]
["Республика Карелия"]
["Республика Коми"]
["Республика Марий Эл"]
["Республика Мордовия"]
["Республика Саха (Якутия)"]
["Республика Северная Осетия-Алания"]
["Республика Татарстан"]
["Республика Тыва"]
["Республика Хакасия"]
["Ростовская область"]
["Рязанская область"]
["Самарская область"]
["Саратовская область"]
["Сахалинская область"]
["Свердловская область"]
["Смоленская область"]
["Ставропольский край"]
["Тамбовская область"]
["Тверская область"]
["Томская область"]
["Тульская область"]
["Тюменская область"]
["Удмуртская республика"]
["Ульяновская область"]
["Хабаровский край"]
["Ханты-Мансийский автономный округ"]
["Челябинская область"]
["Чеченская республика"]
["Чувашская республика"]
["Чукотский автономный округ"]
["Ямало-Ненецкий автономный округ"]
["Ярославская область"]

{"sheet":"et_union_hor","index":17,"n_rows":79,"n_cols":23,"rows_kept":79,"hidden":true,"merged":[[3,3,4,3],[3,4,4,4],[15,0,16,0],[15,4,15,7],[22,0,24,0],[22,1,23,1],[22,4,23,4],[22,5,23,5],[22,19,24,19],[22,20,24,20],[22,21,24,21],[22,22,24,22],[22,23,24,23],[22,24,24,24],[22,25,24,25],[28,0,30,0],[28,1,29,1],[28,4,29,4],[28,5,29,5],[28,19,30,19],[28,20,30,20],[28,21,30,21],[28,22,30,22],[28,23,30,23],[28,24,30,24],[28,25,30,25],[34,1,35,1],[34,4,35,4],[34,5,35,5],[59,4,62,4],[59,5,59,7],[59,20,62,20],[59,21,62,21],[59,22,62,22],[59,23,62,23],[59,24,62,24],[59,25,62,25],[59,26,62,26],[61,5,61,7]]}
[]
["et_List01","et_List01_1"]
[]
[{"$nulls":5},1]
[{"$nulls":6},"Добавить МО"]
[]
[]
["et_Comm"]
[]
[]
[]
[]
["et_List03"]
[]
[]
[{"$nulls":3},{"$f":"A16","v":0}]
[{"$nulls":3},{"$f":"A16&\".1\"","v":".1"},"Сайт организации в сети Интернет"]
[]
[]
[]
["et_List02"]
[]
["1",1,null,null,{"$f":"A23&\".\"&B23","v":"1.1"},null,"через тепловую сеть",{"$nulls":12},"","",""]
[{"$nulls":6},"отпуск с коллекторов"]
[{"$nulls":5},"Добавить вид теплоносителя"]
[]
["et_List02_one"]
[]
["1",1,null,null,{"$f":"A29&\".\"&B29","v":"1.1"},null,"через тепловую сеть",{"$nulls":12},"","",""]
[{"$nulls":6},"отпуск с коллекторов"]
[{"$nulls":5},"Добавить вид теплоносителя"]
[]
["et_List02_1"]
[]
[{"$nulls":4},{"$f":"A35&\".\"&B35","v":"."},null,"через тепловую сеть"]
[{"$nulls":6},"отпуск с коллекторов"]
[]
["et_List04"]
[]
[{"$nulls":4},"1"]
[]
["et_List05"]
[]
[{"$nulls":4},1]
[]
["et_List06"]
[]
[{"$nulls":4},1]
[]
["et_List07"]
[]
[{"$nulls":4},"1"]
[]
["et_List08"]
[]
[{"$nulls":4},"1"]
[]
["et_List09"]
[]
[null,1,null,null,1,"Компонент на теплоноситель, руб./куб.м",{"$nulls":14},"","",""]
[{"$nulls":7},"Добавить поставщика теплоносителя"]
[null,1,{"$nulls":3},"Компонент на тепловую энергию, руб./Гкал"]
[{"$nulls":7},"Добавить поставщика тепловой энергии"]
[]
["et_List09_1"]
[]
[{"$nulls":6},"1"]
[]
["et_List09_2"]
[]
[{"$nulls":6},"1"]
[]
["et_List09_3"]
[]
[{"$nulls":6},"1"]
[]
["et_List10"]
[]
[{"$nulls":4},1]

{"sheet":"et_union_vert","index":18,"n_rows":0,"n_cols":0,"rows_kept":0,"hidden":true}

{"sheet":"modInfo","index":19,"n_rows":19,"n_cols":2,"rows_kept":19,"hidden":true}
[null,"Титульный"]
[null,"Для выбора того или иного источника публикации выполните двойной щелчок по синей ячейке напротив соответствующего источника.\nВНИМАНИЕ! Если Вы снимаете галочку с пункта, то будут скрыты и очищены соответствующие строки на листе \"Ссылки на публикации\"!\n\nОпубликование перечисленных в шаблоне показателей на сайте организации в сети Интернет и в печатных изданиях не обязательно, если данный шаблон предоставлен по системе ЕИАС (региональный сегмент)."]
[null,"Обязательное опубликование на официальном сайте органа исполнительной власти субъекта Российской Федерации в области государственного регулирования цен (тарифов), и (или) на официальном сайте органа местного самоуправления поселения или городского округа в случае их наделения в соответствии с законом субъекта Российской Федерации полномочиями по государственному регулированию цен (тарифов)предусмотрено пунктом 3 (а) постановления Правительства №570 от 05.07.2013 г."]
[null,"Задайте период регулирования, выбрав даты начала и окончания очередного периода регулирования из календаря (иконка справа от указанной ячейки), либо введите дату непосредственно в ячейку в формате - 'ДД.ММ.ГГГГ'"]
[null,"Шаблон заполняется раздельно по каждому виду тарифа"]
[null,"В зависимости от указанного вида деятельности будут доступны для заполнения поля 'Производство', 'Передача' и 'Сбыт'"]
[null,"Если выбрано 'да', на листах с разбивкой по потребителям доступны для заполнения графы для двухставочного ставочного тарифа по группам потребителей"]
[null,"Если выбрано 'да', значения тарифов для групп потребителей на листах с разбивкой по потребителям заполнятся автоматически значениями первой группы"]
[null,"Ссылки на публикации"]
[null,"Вводите адрес сайта, не нарушая цвет ячейки /если копируете гиперссылку из браузера, то выполните двойной щелчок по ячейке и только после этого можете вставить скопированный элемент/"]
[null,"Обосновывающие материалы необходимо загружать с помощью \"ЕИАС Мониторинг\". Ссылка на инструкцию по загрузке обосновывающих материалов расположена на листе 'Инструкция' в п.'Методология заполнения'.\n\nВвводите ссылку, не нарушая цвет ячейки /если копируете гиперссылку из браузера, то выполните двойной щелчок по ячейке и только после этого можете вставить скопированный элемент/."]
[null,"Если для какого-либо пункта графы 'Наименование источника (сайта или печатного издания)' информация не раскрывалась, то в соответствующем поле укажите - 'не раскрывалась'"]
[null,"Список МО"]
[null,"В случае, если тариф не дифференцируется по системам теплоснабжения, перечислите все муниципальные районы, в которых организация осуществляет услуги теплоснабжения и сфере оказания услуг по передаче тепловой энергии"]
[null,"В случае, если тариф не дифференцируется по системам теплоснабжения, перечислите все муниципальные образования, в которых организация осуществляет услуги теплоснабжения и сфере оказания услуг по передаче тепловой энергии"]
[null,"Признак дифференциации тарифа"]
[null,"В случае, если тариф не дифференцируется по системам теплоснабжения, укажите \"1\".\nВведите значение от 1 до 100, чтобы указать очередной условный порядковый номер системы теплоснабжения"]
[null,"Стандарты"]
[null,"В качестве примечания Вы можете указать единицу измерения"]

{"sheet":"modRegion","index":20,"n_rows":0,"n_cols":0,"rows_kept":0,"hidden":true}

{"sheet":"modReestr","index":21,"n_rows":0,"n_cols":0,"rows_kept":0,"hidden":true}

{"sheet":"modfrmReestr","index":22,"n_rows":0,"n_cols":0,"rows_kept":0,"hidden":true}

{"sheet":"modUpdTemplMain","index":23,"n_rows":0,"n_cols":0,"rows_kept":0,"hidden":true}

{"sheet":"REESTR_ORG","index":24,"n_rows":533,"n_cols":12,"rows_kept":533,"hidden":true}
["№","NSRF","MR_NAME","OKTMO_MR_NAME","MO_NAME","OKTMO_NAME","RST_ORG_ID","ORG_NAME","INN_NAME","KPP_NAME","VDET_NAME"]
[1,"Тюменская область","Абатский муниципальный район","71603000","Абатское","71603402","26504124","Ишимское РНУ АО \"Транснефть- Западная Сибирь\"","5502020634","720543001","производство (некомбинированная выработка)+передача+сбыт","WARM"]
[2,"Тюменская область","Абатский муниципальный район","71603000","Абатское","71603402","28882077","ООО \"Абатский жилремстрой\"","7208004222","720501001","производство (некомбинированная выработка)+передача+сбыт","WARM"]
[3,"Тюменская область","Абатский муниципальный район","71603000","Абатское","71603402","26375283","ООО \"Теплосервис с. Абатское\"","7208003980","720501001","производство (некомбинированная выработка)+передача+сбыт","WARM"]
[4,"Тюменская область","Абатский муниципальный район","71603000","Банниковское","71603410","26504124","Ишимское РНУ АО \"Транснефть- Западная Сибирь\"","5502020634","720543001","производство (некомбинированная выработка)+передача+сбыт","WARM"]
[5,"Тюменская область","Абатский муниципальный район","71603000","Банниковское","71603410","28882077","ООО \"Абатский жилремстрой\"","7208004222","720501001","производство (некомбинированная выработка)+передача+сбыт","WARM"]
[6,"Тюменская область","Абатский муниципальный район","71603000","Банниковское","71603410","26375283","ООО \"Теплосервис с. Абатское\"","7208003980","720501001","производство (некомбинированная выработка)+передача+сбыт","WARM"]
[7,"Тюменская область","Абатский муниципальный район","71603000","Болдыревское","71603415","26504124","Ишимское РНУ АО \"Транснефть- Западная Сибирь\"","5502020634","720543001","производство (некомбинированная выработка)+передача+сбыт","WARM"]
[8,"Тюменская область","Абатский муниципальный район","71603000","Болдыревское","71603415","28882077","ООО \"Абатский жилремстрой\"","7208004222","720501001","производство (некомбинированная выработка)+передача+сбыт","WARM"]
[9,"Тюменская область","Абатский муниципальный район","71603000","Болдыревское","71603415","26375283","ООО \"Теплосервис с. Абатское\"","7208003980","720501001","производство (некомбинированная выработка)+передача+сбыт","WARM"]
[10,"Тюменская область","Абатский муниципальный район","71603000","Коневское","71603430","26504124","Ишимское РНУ АО \"Транснефть- Западная Сибирь\"","5502020634","720543001","производство (некомбинированная выработка)+передача+сбыт","WARM"]
[11,"Тюменская область","Абатский муниципальный район","71603000","Коневское","71603430","28882077","ООО \"Абатский жилремстрой\"","7208004222","720501001","производство (некомбинированная выработка)+передача+сбыт","WARM"]
[12,"Тюменская область","Абатский муниципальный район","71603000","Коневское","71603430","26375283","ООО \"Теплосервис с. Абатское\"","7208003980","720501001","производство (некомбинированная выработка)+передача+сбыт","WARM"]
[13,"Тюменская область","Абатский муниципальный район","71603000","Ленинское","71603435","26504124","Ишимское РНУ АО \"Транснефть- Западная Сибирь\"","5502020634","720543001","производство (некомбинированная выработка)+передача+сбыт","WARM"]
[14,"Тюменская область","Абатский муниципальный район","71603000","Ленинское","71603435","28882077","ООО \"Абатский жилремстрой\"","7208004222","720501001","производство (некомбинированная выработка)+передача+сбыт","WARM"]
[15,"Тюменская область","Абатский муниципальный район","71603000","Ленинское","71603435","26375283","ООО \"Теплосервис с. Абатское\"","7208003980","720501001","производство (некомбинированная выработка)+передача+сбыт","WARM"]
[16,"Тюменская область","Абатский муниципальный район","71603000","Майское","71603440","26504124","Ишимское РНУ АО \"Транснефть- Западная Сибирь\"","5502020634","720543001","производство (некомбинированная выработка)+передача+сбыт","WARM"]
[17,"Тюменская область","Абатский муниципальный район","71603000","Майское","71603440","28882077","ООО \"Абатский жилремстрой\"","7208004222","720501001","производство (некомбинированная выработка)+передача+сбыт","WARM"]
[18,"Тюменская область","Абатский муниципальный район","71603000","Майское","71603440","26375283","ООО \"Теплосервис с. Абатское\"","7208003980","720501001","производство (некомбинированная выработка)+передача+сбыт","WARM"]
[19,"Тюменская область","Абатский муниципальный район","71603000","Назаровское","71603445","26504124","Ишимское РНУ АО \"Транснефть- Западная Сибирь\"","5502020634","720543001","производство (некомбинированная выработка)+передача+сбыт","WARM"]
[20,"Тюменская область","Абатский муниципальный район","71603000","Назаровское","71603445","28882077","ООО \"Абатский жилремстрой\"","7208004222","720501001","производство (некомбинированная выработка)+передача+сбыт","WARM"]
[21,"Тюменская область","Абатский муниципальный район","71603000","Назаровское","71603445","26375283","ООО \"Теплосервис с. Абатское\"","7208003980","720501001","производство (некомбинированная выработка)+передача+сбыт","WARM"]
[22,"Тюменская область","Абатский муниципальный район","71603000","Ощепковское","71603450","26504124","Ишимское РНУ АО \"Транснефть- Западная Сибирь\"","5502020634","720543001","производство (некомбинированная выработка)+передача+сбыт","WARM"]
[23,"Тюменская область","Абатский муниципальный район","71603000","Ощепковское","71603450","28882077","ООО \"Абатский жилремстрой\"","7208004222","720501001","производство (некомбинированная выработка)+передача+сбыт","WARM"]
[24,"Тюменская область","Абатский муниципальный район","71603000","Ощепковское","71603450","26375283","ООО \"Теплосервис с. Абатское\"","7208003980","720501001","производство (некомбинированная выработка)+передача+сбыт","WARM"]
[25,"Тюменская область","Абатский муниципальный район","71603000","Партизанское","71603455","26504124","Ишимское РНУ АО \"Транснефть- Западная Сибирь\"","5502020634","720543001","производство (некомбинированная выработка)+передача+сбыт","WARM"]
[26,"Тюменская область","Абатский муниципальный район","71603000","Партизанское","71603455","28882077","ООО \"Абатский жилремстрой\"","7208004222","720501001","производство (некомбинированная выработка)+передача+сбыт","WARM"]
[27,"Тюменская область","Абатский муниципальный район","71603000","Партизанское","71603455","26375283","ООО \"Теплосервис с. Абатское\"","7208003980","720501001","производство (некомбинированная выработка)+передача+сбыт","WARM"]
[28,"Тюменская область","Абатский муниципальный район","71603000","Тушнолобовское","71603460","26504124","Ишимское РНУ АО \"Транснефть- Западная Сибирь\"","5502020634","720543001","производство (некомбинированная выработка)+передача+сбыт","WARM"]
[29,"Тюменская область","Абатский муниципальный район","71603000","Тушнолобовское","71603460","28882077","ООО \"Абатский жилремстрой\"","7208004222","720501001","производство (некомбинированная выработка)+передача+сбыт","WARM"]
[30,"Тюменская область","Абатский муниципальный район","71603000","Тушнолобовское","71603460","26375283","ООО \"Теплосервис с. Абатское\"","7208003980","720501001","производство (некомбинированная выработка)+передача+сбыт","WARM"]
[31,"Тюменская область","Абатский муниципальный район","71603000","Шевыринское","71603465","26504124","Ишимское РНУ АО \"Транснефть- Западная Сибирь\"","5502020634","720543001","производство (некомбинированная выработка)+передача+сбыт","WARM"]
[32,"Тюменская область","Абатский муниципальный район","71603000","Шевыринское","71603465","28882077","ООО \"Абатский жилремстрой\"","7208004222","720501001","производство (некомбинированная выработка)+передача+сбыт","WARM"]
[33,"Тюменская область","Абатский муниципальный район","71603000","Шевыринское","71603465","26375283","ООО \"Теплосервис с. Абатское\"","7208003980","720501001","производство (некомбинированная выработка)+передача+сбыт","WARM"]
[34,"Тюменская область","Армизонский муниципальный район","71605000","Армизонский муниципальный район","71605000","26375285","Армизонское УМПЖКХ","7209005331","720901001","производство (некомбинированная выработка)+передача+сбыт","WARM"]
[35,"Тюменская область","Армизонский муниципальный район","71605000","Армизонский муниципальный район","71605000","26375352","ООО \"Ромист\"","7224032562","720901001","производство (некомбинированная выработка)+передача+сбыт","WARM"]
[36,"Тюменская область","Армизонский муниципальный район","71605000","Армизонское","71605405","26375285","Армизонское УМПЖКХ","7209005331","720901001","производство (некомбинированная выработка)+передача+сбыт","WARM"]
[37,"Тюменская область","Армизонский муниципальный район","71605000","Армизонское","71605405","26375352","ООО \"Ромист\"","7224032562","720901001","производство (некомбинированная выработка)+передача+сбыт","WARM"]
[38,"Тюменская область","Армизонский муниципальный район","71605000","Ивановское","71605410","26375352","ООО \"Ромист\"","7224032562","720901001","производство (некомбинированная выработка)+передача+сбыт","WARM"]
[39,"Тюменская область","Армизонский муниципальный район","71605000","Калмакское","71605415","26375352","ООО \"Ромист\"","7224032562","720901001","производство (некомбинированная выработка)+передача+сбыт","WARM"]
[40,"Тюменская область","Армизонский муниципальный район","71605000","Капралихинское","71605420","26375352","ООО \"Ромист\"","7224032562","720901001","производство (некомбинированная выработка)+передача+сбыт","WARM"]
[41,"Тюменская область","Армизонский муниципальный район","71605000","Красноорловское","71605425","26375352","ООО \"Ромист\"","7224032562","720901001","производство (некомбинированная выработка)+передача+сбыт","WARM"]
[42,"Тюменская область","Армизонский муниципальный район","71605000","Орловское","71605430","26375352","ООО \"Ромист\"","7224032562","720901001","производство (некомбинированная выработка)+передача+сбыт","WARM"]
[43,"Тюменская область","Армизонский муниципальный район","71605000","Прохоровское","71605435","26375352","ООО \"Ромист\"","7224032562","720901001","производство (некомбинированная выработка)+передача+сбыт","WARM"]
[44,"Тюменская область","Армизонский муниципальный район","71605000","Раздольское","71605440","26375352","ООО \"Ромист\"","7224032562","720901001","производство (некомбинированная выработка)+передача+сбыт","WARM"]
[45,"Тюменская область","Армизонский муниципальный район","71605000","Южно-Дубровинское","71605445","26375352","ООО \"Ромист\"","7224032562","720901001","производство (некомбинированная выработка)+передача+сбыт","WARM"]
[46,"Тюменская область","Аромашевский муниципальный район","71607000","Аромашевский муниципальный район","71607000","26504124","Ишимское РНУ АО \"Транснефть- Западная Сибирь\"","5502020634","720543001","производство (некомбинированная выработка)+передача+сбыт","WARM"]
[47,"Тюменская область","Аромашевский муниципальный район","71607000","Аромашевский муниципальный район","71607000","26777702","ООО \"Булашов и Коммунал Сервис\"","7210110348","721001001","производство (некомбинированная выработка)+передача+сбыт","WARM"]
[48,"Тюменская область","Аромашевский муниципальный район","71607000","Аромашевский муниципальный район","71607000","26375288","ООО \"Спец Тепло Сервис\"","7210110147","721001001","производство (некомбинированная выработка)+передача+сбыт","WARM"]
[49,"Тюменская область","Аромашевский муниципальный район","71607000","Аромашевский муниципальный район","71607000","28796899","ООО \"УК \"АРОМАШЕВОГАЗСЕРВИС\"","7220005590","722001001","производство (некомбинированная выработка)+передача+сбыт","WARM"]
[50,"Тюменская область","Аромашевский муниципальный район","71607000","Аромашевское","71607405","26375288","ООО \"Спец Тепло Сервис\"","7210110147","721001001","производство (некомбинированная выработка)+передача+сбыт","WARM"]
[51,"Тюменская область","Аромашевский муниципальный район","71607000","Аромашевское","71607405","28796899","ООО \"УК \"АРОМАШЕВОГАЗСЕРВИС\"","7220005590","722001001","производство (некомбинированная выработка)+передача+сбыт","WARM"]
[52,"Тюменская область","Аромашевский муниципальный район","71607000","Кармацкое","71607410","26375288","ООО \"Спец Тепло Сервис\"","7210110147","721001001","производство (некомбинированная выработка)+передача+сбыт","WARM"]
[53,"Тюменская область","Аромашевский муниципальный район","71607000","Кротовское","71607415","26375288","ООО \"Спец Тепло Сервис\"","7210110147","721001001","производство (некомбинированная выработка)+передача+сбыт","WARM"]
[54,"Тюменская область","Аромашевский муниципальный район","71607000","Малиновское","71607420","26375288","ООО \"Спец Тепло Сервис\"","7210110147","721001001","производство (некомбинированная выработка)+передача+сбыт","WARM"]
[55,"Тюменская область","Аромашевский муниципальный район","71607000","Малоскарединское","71607425","26375288","ООО \"Спец Тепло Сервис\"","7210110147","721001001","производство (некомбинированная выработка)+передача+сбыт","WARM"]
[56,"Тюменская область","Аромашевский муниципальный район","71607000","Новоберезовское","71607430","26375288","ООО \"Спец Тепло Сервис\"","7210110147","721001001","производство (некомбинированная выработка)+передача+сбыт","WARM"]
[57,"Тюменская область","Аромашевский муниципальный район","71607000","Новопетровское","71607435","26504124","Ишимское РНУ АО \"Транснефть- Западная Сибирь\"","5502020634","720543001","производство (некомбинированная выработка)","WARM"]
[58,"Тюменская область","Аромашевский муниципальный район","71607000","Новопетровское","71607435","26504124","Ишимское РНУ АО \"Транснефть- Западная Сибирь\"","5502020634","720543001","производство (некомбинированная выработка)+передача","WARM"]
[59,"Тюменская область","Аромашевский муниципальный район","71607000","Новопетровское","71607435","26777702","ООО \"Булашов и Коммунал Сервис\"","7210110348","721001001","производство (некомбинированная выработка)+передача+сбыт","WARM"]
[60,"Тюменская область","Аромашевский муниципальный район","71607000","Русаковское","71607440","26375288","ООО \"Спец Тепло Сервис\"","7210110147","721001001","производство (некомбинированная выработка)+передача+сбыт","WARM"]
[61,"Тюменская область","Аромашевский муниципальный район","71607000","Слободчиковское","71607445","26375288","ООО \"Спец Тепло Сервис\"","7210110147","721001001","производство (некомбинированная выработка)+передача+сбыт","WARM"]
[62,"Тюменская область","Аромашевский муниципальный район","71607000","Сорочкинское","71607450","26375288","ООО \"Спец Тепло Сервис\"","7210110147","721001001","производство (некомбинированная выработка)+передача+сбыт","WARM"]
[63,"Тюменская область","Аромашевский муниципальный район","71607000","Юрминское","71607455","26375288","ООО \"Спец Тепло Сервис\"","7210110147","721001001","производство (некомбинированная выработка)+передача+сбыт","WARM"]
[64,"Тюменская область","Бердюжский муниципальный район","71610000","Бердюжский муниципальный район","71610000","28264544","МУП \"Жилищно-коммунальное хозяйство\" Бердюжского района","7220005046","722001001","производство (некомбинированная выработка)+передача+сбыт","WARM"]
[65,"Тюменская область","Бердюжский муниципальный район","71610000","Бердюжский муниципальный район","71610000","28264555","МУП \"Теплосервис\" Бердюжского района","7220005092","722001001","производство (некомбинированная выработка)+передача+сбыт","WARM"]
[66,"Тюменская область","Бердюжский муниципальный район","71610000","Бердюжский муниципальный район","71610000","26375294","ООО \"Коммуналсервис\"","7211005547","721101001","производство (некомбинированная выработка)+передача+сбыт","WARM"]
[67,"Тюменская область","Бердюжский муниципальный район","71610000","Бердюжский муниципальный район","71610000","30911762","ООО \"МУП Бердюжское ЖКХ\"","7220098763","722001001","производство (некомбинированная выработка)+передача+сбыт","WARM"]
[68,"Тюменская область","Бердюжский муниципальный район","71610000","Бердюжский муниципальный район","71610000","26375295","ООО \"Теплолюкс\"","7211005554","721101001","производство (некомбинированная выработка)+передача+сбыт","WARM"]
[69,"Тюменская область","Бердюжский муниципальный район","71610000","Бердюжское","71610410","28264544","МУП \"Жилищно-коммунальное хозяйство\" Бердюжского района","7220005046","722001001","производство (некомбинированная выработка)+передача+сбыт","WARM"]
[70,"Тюменская область","Бердюжский муниципальный район","71610000","Зарословское","71610420","28264544","МУП \"Жилищно-коммунальное хозяйство\" Бердюжского района","7220005046","722001001","производство (некомбинированная выработка)+передача+сбыт","WARM"]
[71,"Тюменская область","Бердюжский муниципальный район","71610000","Зарословское","71610420","30911762","ООО \"МУП Бердюжское ЖКХ\"","7220098763","722001001","производство (некомбинированная выработка)+передача+сбыт","WARM"]
[72,"Тюменская область","Бердюжский муниципальный район","71610000","Истошинское","71610430","28264544","МУП \"Жилищно-коммунальное хозяйство\" Бердюжского района","7220005046","722001001","производство (некомбинированная выработка)+передача+сбыт","WARM"]
[73,"Тюменская область","Бердюжский муниципальный район","71610000","Мелехинское","71610440","28264544","МУП \"Жилищно-коммунальное хозяйство\" Бердюжского района","7220005046","722001001","производство (некомбинированная выработка)+передача+сбыт","WARM"]
[74,"Тюменская область","Бердюжский муниципальный район","71610000","Мелехинское","71610440","30911762","ООО \"МУП Бердюжское ЖКХ\"","7220098763","722001001","производство (некомбинированная выработка)+передача+сбыт","WARM"]
[75,"Тюменская область","Бердюжский муниципальный район","71610000","Окуневское","71610450","28264544","МУП \"Жилищно-коммунальное хозяйство\" Бердюжского района","7220005046","722001001","производство (некомбинированная выработка)+передача+сбыт","WARM"]
[76,"Тюменская область","Бердюжский муниципальный район","71610000","Пегановское","71610460","28264544","МУП \"Жилищно-коммунальное хозяйство\" Бердюжского района","7220005046","722001001","производство (некомбинированная выработка)+передача+сбыт","WARM"]
[77,"Тюменская область","Бердюжский муниципальный район","71610000","Полозаозерское","71610470","28264544","МУП \"Жилищно-коммунальное хозяйство\" Бердюжского района","7220005046","722001001","производство (некомбинированная выработка)+передача+сбыт","WARM"]
[78,"Тюменская область","Бердюжский муниципальный район","71610000","Рямовское","71610474","28264544","МУП \"Жилищно-коммунальное хозяйство\" Бердюжского района","7220005046","722001001","производство (некомбинированная выработка)+передача+сбыт","WARM"]
[79,"Тюменская область","Бердюжский муниципальный район","71610000","Рямовское","71610474","30911762","ООО \"МУП Бердюжское ЖКХ\"","7220098763","722001001","производство (некомбинированная выработка)+передача+сбыт","WARM"]
[80,"Тюменская область","Бердюжский муниципальный район","71610000","Уктузское","71610480","30911762","ООО \"МУП Бердюжское ЖКХ\"","7220098763","722001001","производство (некомбинированная выработка)+передача+сбыт","WARM"]
[81,"Тюменская область","Вагайский муниципальный район","71613000","Аксурское","71613404","26375302","МУП ЖКХ \"Вагай\"","7212005349","721201001","производство (некомбинированная выработка)+передача+сбыт","WARM"]
[82,"Тюменская область","Вагайский муниципальный район","71613000","Бегишевское","71613412","26375302","МУП ЖКХ \"Вагай\"","7212005349","721201001","производство (некомбинированная выработка)+передача+сбыт","WARM"]
[83,"Тюменская область","Вагайский муниципальный район","71613000","Вагайский муниципальный район","71613000","26504124","Ишимское РНУ АО \"Транснефть- Западная Сибирь\"","5502020634","720543001","производство (некомбинированная выработка)+передача+сбыт","WARM"]
[84,"Тюменская область","Вагайский муниципальный район","71613000","Вагайский муниципальный район","71613000","26375296","МУП \"Ремжилстройсервис\"","7212004641","720601001","производство (некомбинированная выработка)+передача+сбыт","WARM"]
[85,"Тюменская область","Вагайский муниципальный район","71613000","Вагайский муниципальный район","71613000","26375302","МУП ЖКХ \"Вагай\"","7212005349","721201001","производство (некомбинированная выработка)+передача+сбыт","WARM"]
[86,"Тюменская область","Вагайский муниципальный район","71613000","Вершинское","71613416","26375302","МУП ЖКХ \"Вагай\"","7212005349","721201001","производство (некомбинированная выработка)+передача+сбыт","WARM"]
[87,"Тюменская область","Вагайский муниципальный район","71613000","Дубровинское","71613428","26375302","МУП ЖКХ \"Вагай\"","7212005349","721201001","производство (некомбинированная выработка)+передача+сбыт","WARM"]
[88,"Тюменская область","Вагайский муниципальный район","71613000","Зареченское","71613424","26504124","Ишимское РНУ АО \"Транснефть- Западная Сибирь\"","5502020634","720543001","производство (некомбинированная выработка)","WARM"]
[89,"Тюменская область","Вагайский муниципальный район","71613000","Зареченское","71613424","26504124","Ишимское РНУ АО \"Транснефть- Западная Сибирь\"","5502020634","720543001","производство (некомбинированная выработка)+передача","WARM"]
[90,"Тюменская область","Вагайский муниципальный район","71613000","Зареченское","71613424","26375296","МУП \"Ремжилстройсервис\"","7212004641","720601001","производство (некомбинированная выработка)+передача+сбыт","WARM"]
[91,"Тюменская область","Вагайский муниципальный район","71613000","Зареченское","71613424","26375302","МУП ЖКХ \"Вагай\"","7212005349","721201001","производство (некомбинированная выработка)+передача+сбыт","WARM"]
[92,"Тюменская область","Вагайский муниципальный район","71613000","Казанское","71613456","26375302","МУП ЖКХ \"Вагай\"","7212005349","721201001","производство (некомбинированная выработка)+передача+сбыт","WARM"]
[93,"Тюменская область","Вагайский муниципальный район","71613000","Карагайское","71613432","26375302","МУП ЖКХ \"Вагай\"","7212005349","721201001","производство (некомбинированная выработка)+передача+сбыт","WARM"]
[94,"Тюменская область","Вагайский муниципальный район","71613000","Касьяновское","71613436","26375296","МУП \"Ремжилстройсервис\"","7212004641","720601001","производство (некомбинированная выработка)+передача+сбыт","WARM"]
[95,"Тюменская область","Вагайский муниципальный район","71613000","Касьяновское","71613436","26375302","МУП ЖКХ \"Вагай\"","7212005349","721201001","производство (некомбинированная выработка)+передача+сбыт","WARM"]
[96,"Тюменская область","Вагайский муниципальный район","71613000","Куларовское","71613444","26375302","МУП ЖКХ \"Вагай\"","7212005349","721201001","производство (некомбинированная выработка)+передача+сбыт","WARM"]
[97,"Тюменская область","Вагайский муниципальный район","71613000","Первовагайское","71613460","26375296","МУП \"Ремжилстройсервис\"","7212004641","720601001","производство (некомбинированная выработка)+передача+сбыт","WARM"]
[98,"Тюменская область","Вагайский муниципальный район","71613000","Первовагайское","71613460","26375302","МУП ЖКХ \"Вагай\"","7212005349","721201001","производство (некомбинированная выработка)+передача+сбыт","WARM"]
[99,"Тюменская область","Вагайский муниципальный район","71613000","Первомайское","71613464","26375302","МУП ЖКХ \"Вагай\"","7212005349","721201001","производство (некомбинированная выработка)+передача+сбыт","WARM"]
[100,"Тюменская область","Вагайский муниципальный район","71613000","Птицкое","71613468","26375302","МУП ЖКХ \"Вагай\"","7212005349","721201001","производство (некомбинированная выработка)+передача+сбыт","WARM"]
[101,"Тюменская область","Вагайский муниципальный район","71613000","Супринское","71613472","26375302","МУП ЖКХ \"Вагай\"","7212005349","721201001","производство (некомбинированная выработка)+передача+сбыт","WARM"]
[102,"Тюменская область","Вагайский муниципальный район","71613000","Тукузское","71613476","26375302","МУП ЖКХ \"Вагай\"","7212005349","721201001","производство (некомбинированная выработка)+передача+сбыт","WARM"]
[103,"Тюменская область","Вагайский муниципальный район","71613000","Ушаковское","71613480","26375302","МУП ЖКХ \"Вагай\"","7212005349","721201001","производство (некомбинированная выработка)+передача+сбыт","WARM"]
[104,"Тюменская область","Вагайский муниципальный район","71613000","Фатеевское","71613484","26375302","МУП ЖКХ \"Вагай\"","7212005349","721201001","производство (некомбинированная выработка)+передача+сбыт","WARM"]
[105,"Тюменская область","Вагайский муниципальный район","71613000","Черноковское","71613488","26375302","МУП ЖКХ \"Вагай\"","7212005349","721201001","производство (некомбинированная выработка)+передача+сбыт","WARM"]
[106,"Тюменская область","Вагайский муниципальный район","71613000","Шестовское","71613492","26375302","МУП ЖКХ \"Вагай\"","7212005349","721201001","производство (некомбинированная выработка)+передача+сбыт","WARM"]
[107,"Тюменская область","Вагайский муниципальный район","71613000","Шишкинское","71613408","26375302","МУП ЖКХ \"Вагай\"","7212005349","721201001","производство (некомбинированная выработка)+передача+сбыт","WARM"]
[108,"Тюменская область","Викуловский муниципальный район","71615000","Балаганское","71615404","28509855","ООО \"Сибириада\"","7205023474","720501001","производство (некомбинированная выработка)+передача+сбыт","WARM"]
[109,"Тюменская область","Викуловский муниципальный район","71615000","Балаганское","71615404","26375303","ООО ЖКХ \"Викуловское\"","7213004669","721301001","производство (некомбинированная выработка)+передача+сбыт","WARM"]
[110,"Тюменская область","Викуловский муниципальный район","71615000","Березинское","71615408","26375303","ООО ЖКХ \"Викуловское\"","7213004669","721301001","производство (некомбинированная выработка)+передача+сбыт","WARM"]
[111,"Тюменская область","Викуловский муниципальный район","71615000","Викуловский муниципальный район","71615000","28509855","ООО \"Сибириада\"","7205023474","720501001","производство (некомбинированная выработка)+передача+сбыт","WARM"]
[112,"Тюменская область","Викуловский муниципальный район","71615000","Викуловский муниципальный район","71615000","26375303","ООО ЖКХ \"Викуловское\"","7213004669","721301001","производство (некомбинированная выработка)+передача+сбыт","WARM"]
[113,"Тюменская область","Викуловский муниципальный район","71615000","Викуловское","71615412","28509855","ООО \"Сибириада\"","7205023474","720501001","производство (некомбинированная выработка)+передача+сбыт","WARM"]
[114,"Тюменская область","Викуловский муниципальный район","71615000","Викуловское","71615412","26375303","ООО ЖКХ \"Викуловское\"","7213004669","721301001","производство (некомбинированная выработка)+передача+сбыт","WARM"]
[115,"Тюменская область","Викуловский муниципальный район","71615000","Ермаковское","71615416","28509855","ООО \"Сибириада\"","7205023474","720501001","производство (некомбинированная выработка)+передача+сбыт","WARM"]
[116,"Тюменская область","Викуловский муниципальный район","71615000","Ермаковское","71615416","26375303","ООО ЖКХ \"Викуловское\"","7213004669","721301001","производство (некомбинированная выработка)+передача+сбыт","WARM"]
[117,"Тюменская область","Викуловский муниципальный район","71615000","Калининское","71615420","26375303","ООО ЖКХ \"Викуловское\"","7213004669","721301001","производство (некомбинированная выработка)+передача+сбыт","WARM"]
[118,"Тюменская область","Викуловский муниципальный район","71615000","Каргалинское","71615424","28509855","ООО \"Сибириада\"","7205023474","720501001","производство (некомбинированная выработка)+передача+сбыт","WARM"]
[119,"Тюменская область","Викуловский муниципальный район","71615000","Каргалинское","71615424","26375303","ООО ЖКХ \"Викуловское\"","7213004669","721301001","производство (некомбинированная выработка)+передача+сбыт","WARM"]
[120,"Тюменская область","Викуловский муниципальный район","71615000","Коточиговское","71615428","26375303","ООО ЖКХ \"Викуловское\"","7213004669","721301001","производство (некомбинированная выработка)+передача+сбыт","WARM"]
[121,"Тюменская область","Викуловский муниципальный район","71615000","Нововяткинское","71615432","26375303","ООО ЖКХ \"Викуловское\"","7213004669","721301001","производство (некомбинированная выработка)+передача+сбыт","WARM"]
[122,"Тюменская область","Викуловский муниципальный район","71615000","Озернинское","71615436","26375303","ООО ЖКХ \"Викуловское\"","7213004669","721301001","производство (некомбинированная выработка)+передача+сбыт","WARM"]
[123,"Тюменская область","Викуловский муниципальный район","71615000","Поддубровинское","71615440","28509855","ООО \"Сибириада\"","7205023474","720501001","производство (некомбинированная выработка)+передача+сбыт","WARM"]
[124,"Тюменская область","Викуловский муниципальный район","71615000","Поддубровинское","71615440","26375303","ООО ЖКХ \"Викуловское\"","7213004669","721301001","производство (некомбинированная выработка)+передача+сбыт","WARM"]
[125,"Тюменская область","Викуловский муниципальный район","71615000","Рябовское","71615444","28509855","ООО \"Сибириада\"","7205023474","720501001","производство (некомбинированная выработка)+передача+сбыт","WARM"]
[126,"Тюменская область","Викуловский муниципальный район","71615000","Рябовское","71615444","26375303","ООО ЖКХ \"Викуловское\"","7213004669","721301001","производство (некомбинированная выработка)+передача+сбыт","WARM"]
[127,"Тюменская область","Викуловский муниципальный район","71615000","Сартамское","71615448","26375303","ООО ЖКХ \"Викуловское\"","7213004669","721301001","производство (некомбинированная выработка)+передача+сбыт","WARM"]
[128,"Тюменская область","Викуловский муниципальный район","71615000","Скрипкинское","71615452","28509855","ООО \"Сибириада\"","7205023474","720501001","производство (некомбинированная выработка)+передача+сбыт","WARM"]
[129,"Тюменская область","Викуловский муниципальный район","71615000","Скрипкинское","71615452","26375303","ООО ЖКХ \"Викуловское\"","7213004669","721301001","производство (некомбинированная выработка)+передача+сбыт","WARM"]
[130,"Тюменская область","Викуловский муниципальный район","71615000","Чуртанское","71615456","28509855","ООО \"Сибириада\"","7205023474","720501001","производство (некомбинированная выработка)+передача+сбыт","WARM"]
[131,"Тюменская область","Викуловский муниципальный район","71615000","Чуртанское","71615456","26375303","ООО ЖКХ \"Викуловское\"","7213004669","721301001","производство (некомбинированная выработка)+передача+сбыт","WARM"]
[132,"Тюменская область","Голышмановский муниципальный район","71618000","Бескозобовское","71618405","26996341","ООО \"Сибгазсервис\"","7214006972","721401001","производство (некомбинированная выработка)+передача+сбыт","WARM"]
[133,"Тюменская область","Голышмановский муниципальный район","71618000","Боровлянское","71618410","26996341","ООО \"Сибгазсервис\"","7214006972","721401001","производство (некомбинированная выработка)+передача+сбыт","WARM"]
[134,"Тюменская область","Голышмановский муниципальный район","71618000","Гладиловское","71618415","26996341","ООО \"Сибгазсервис\"","7214006972","721401001","производство (некомбинированная выработка)+передача+сбыт","WARM"]
[135,"Тюменская область","Голышмановский муниципальный район","71618000","Голышманово","71618416","28005926","ООО \"Голышмановотеплосервис\"","7220004589","722001001","производство (некомбинированная выработка)+передача+сбыт","WARM"]
[136,"Тюменская область","Голышмановский муниципальный район","71618000","Голышманово","71618416","26375620","Свердловская дирекция по тепловодоснабжению - структурное подразделение центральной дирекции по тепловодоснабжению - филиала ОАО \"РЖД\"","7708503727","665931051","производство (некомбинированная выработка)+передача+сбыт","WARM"]
[137,"Тюменская область","Голышмановский муниципальный район","71618000","Голышмановский муниципальный район","71618000","28005926","ООО \"Голышмановотеплосервис\"","7220004589","722001001","производство (некомбинированная выработка)+передача+сбыт","WARM"]
[138,"Тюменская область","Голышмановский муниципальный район","71618000","Голышмановский муниципальный район","71618000","26996341","ООО \"Сибгазсервис\"","7214006972","721401001","производство (некомбинированная выработка)+передача+сбыт","WARM"]
[139,"Тюменская область","Голышмановский муниципальный район","71618000","Голышмановское","71618420","26996341","ООО \"Сибгазсервис\"","7214006972","721401001","производство (некомбинированная выработка)+передача+сбыт","WARM"]
[140,"Тюменская область","Голышмановский муниципальный район","71618000","Евсинское","71618425","26996341","ООО \"Сибгазсервис\"","7214006972","721401001","производство (некомбинированная выработка)+передача+сбыт","WARM"]
[141,"Тюменская область","Голышмановский муниципальный район","71618000","Земляновское","71618430","26996341","ООО \"Сибгазсервис\"","7214006972","721401001","производство (некомбинированная выработка)+передача+сбыт","WARM"]
[142,"Тюменская область","Голышмановский муниципальный район","71618000","Королевское","71618435","26996341","ООО \"Сибгазсервис\"","7214006972","721401001","производство (некомбинированная выработка)+передача+сбыт","WARM"]
[143,"Тюменская область","Голышмановский муниципальный район","71618000","Ламенское","71618440","26996341","ООО \"Сибгазсервис\"","7214006972","721401001","производство (некомбинированная выработка)+передача+сбыт","WARM"]
[144,"Тюменская область","Голышмановский муниципальный район","71618000","Малышенское","71618445","26996341","ООО \"Сибгазсервис\"","7214006972","721401001","производство (некомбинированная выработка)+передача+сбыт","WARM"]
[145,"Тюменская область","Голышмановский муниципальный район","71618000","Медведевское","71618450","26996341","ООО \"Сибгазсервис\"","7214006972","721401001","производство (некомбинированная выработка)+передача+сбыт","WARM"]
[146,"Тюменская область","Голышмановский муниципальный район","71618000","Ражевское","71618455","26996341","ООО \"Сибгазсервис\"","7214006972","721401001","производство (некомбинированная выработка)+передача+сбыт","WARM"]
[147,"Тюменская область","Голышмановский муниципальный район","71618000","Среднечирковское","71618460","26996341","ООО \"Сибгазсервис\"","7214006972","721401001","производство (некомбинированная выработка)+передача+сбыт","WARM"]
[148,"Тюменская область","Голышмановский муниципальный район","71618000","Усть-Ламенское","71618465","26996341","ООО \"Сибгазсервис\"","7214006972","721401001","производство (некомбинированная выработка)+передача+сбыт","WARM"]
[149,"Тюменская область","Город Ишим","71705000","Город Ишим","71705000","28792615","ПАО \"СУЭНКО\"","7205011944","720301001","производство (некомбинированная выработка)+передача+сбыт","WARM"]
[150,"Тюменская область","Город Ишим","71705000","Город Ишим","71705000","26375620","Свердловская дирекция по тепловодоснабжению - структурное подразделение центральной дирекции по тепловодоснабжению - филиала ОАО \"РЖД\"","7708503727","665931051","производство (некомбинированная выработка)+передача+сбыт","WARM"]
[151,"Тюменская область","Исетский муниципальный район","71624000","Архангельское","71624403","28277194","МУП ЖКХ \"Заречье\"","7207012950","720701001","производство (некомбинированная выработка)+передача+сбыт","WARM"]
[152,"Тюменская область","Исетский муниципальный район","71624000","Бархатовское","71624405","28277194","МУП ЖКХ \"Заречье\"","7207012950","720701001","производство (некомбинированная выработка)+передача+сбыт","WARM"]
[153,"Тюменская область","Исетский муниципальный район","71624000","Бобылевское","71624410","28277194","МУП ЖКХ \"Заречье\"","7207012950","720701001","производство (некомбинированная выработка)+передача+сбыт","WARM"]
[154,"Тюменская область","Исетский муниципальный район","71624000","Верхнебешкильское","71624415","28277194","МУП ЖКХ \"Заречье\"","7207012950","720701001","производство (некомбинированная выработка)+передача+сбыт","WARM"]
[155,"Тюменская область","Исетский муниципальный район","71624000","Верхнеингальское","71624417","28277194","МУП ЖКХ \"Заречье\"","7207012950","720701001","производство (некомбинированная выработка)+передача+сбыт","WARM"]
[156,"Тюменская область","Исетский муниципальный район","71624000","Денисовское","71624420","28277194","МУП ЖКХ \"Заречье\"","7207012950","720701001","производство (некомбинированная выработка)+передача+сбыт","WARM"]
[157,"Тюменская область","Исетский муниципальный район","71624000","Исетский муниципальный район","71624000","26375314","ГЛПУ ТО \"Областная больница № 13\"","7216001666","721601001","производство (некомбинированная выработка)+передача+сбыт","WARM"]
[158,"Тюменская область","Исетский муниципальный район","71624000","Исетский муниципальный район","71624000","28277194","МУП ЖКХ \"Заречье\"","7207012950","720701001","производство (некомбинированная выработка)+передача+сбыт","WARM"]
[159,"Тюменская область","Исетский муниципальный район","71624000","Исетский муниципальный район","71624000","27580677","Тюменское УМН АО \"Транснефть-Сибирь\"","7201000726","720302001","производство (некомбинированная выработка)+передача+сбыт","WARM"]
[160,"Тюменская область","Исетский муниципальный район","71624000","Исетское","71624425","28277194","МУП ЖКХ \"Заречье\"","7207012950","720701001","производство (некомбинированная выработка)+передача+сбыт","WARM"]
[161,"Тюменская область","Исетский муниципальный район","71624000","Исетское","71624425","27580677","Тюменское УМН АО \"Транснефть-Сибирь\"","7201000726","720302001","производство (некомбинированная выработка)+передача+сбыт","WARM"]
[162,"Тюменская область","Исетский муниципальный район","71624000","Кировское","71624427","28277194","МУП ЖКХ \"Заречье\"","7207012950","720701001","производство (некомбинированная выработка)+передача+сбыт","WARM"]
[163,"Тюменская область","Исетский муниципальный район","71624000","Коммунаровское","71624430","28277194","МУП ЖКХ \"Заречье\"","7207012950","720701001","производство (некомбинированная выработка)+передача+сбыт","WARM"]
[164,"Тюменская область","Исетский муниципальный район","71624000","Красновское","71624435","28277194","МУП ЖКХ \"Заречье\"","7207012950","720701001","производство (некомбинированная выработка)+передача+сбыт","WARM"]
[165,"Тюменская область","Исетский муниципальный район","71624000","Мининское","71624440","28277194","МУП ЖКХ \"Заречье\"","7207012950","720701001","производство (некомбинированная выработка)+передача+сбыт","WARM"]
[166,"Тюменская область","Исетский муниципальный район","71624000","Рассветовское","71624445","28277194","МУП ЖКХ \"Заречье\"","7207012950","720701001","производство (некомбинированная выработка)+передача+сбыт","WARM"]
[167,"Тюменская область","Исетский муниципальный район","71624000","Рафайловское","71624450","28277194","МУП ЖКХ \"Заречье\"","7207012950","720701001","производство (некомбинированная выработка)+передача+сбыт","WARM"]
[168,"Тюменская область","Исетский муниципальный район","71624000","Слободобешкильское","71624455","28277194","МУП ЖКХ \"Заречье\"","7207012950","720701001","производство (некомбинированная выработка)+передача+сбыт","WARM"]
[169,"Тюменская область","Исетский муниципальный район","71624000","Солобоевское","71624460","28277194","МУП ЖКХ \"Заречье\"","7207012950","720701001","производство (некомбинированная выработка)+передача+сбыт","WARM"]
[170,"Тюменская область","Исетский муниципальный район","71624000","Шороховское","71624465","28277194","МУП ЖКХ \"Заречье\"","7207012950","720701001","производство (некомбинированная выработка)+передача+сбыт","WARM"]
[171,"Тюменская область","Ишимский муниципальный район","71626000","Боровское","71626404","26375273","МУП \"Коммунальщик\"","7205011359","720501001","производство (некомбинированная выработка)+передача+сбыт","WARM"]
[172,"Тюменская область","Ишимский муниципальный район","71626000","Бутусовское","71626408","26375273","МУП \"Коммунальщик\"","7205011359","720501001","производство (некомбинированная выработка)+передача+сбыт","WARM"]
[173,"Тюменская область","Ишимский муниципальный район","71626000","Гагаринское","71626416","26375273","МУП \"Коммунальщик\"","7205011359","720501001","производство (некомбинированная выработка)+передача+сбыт","WARM"]
[174,"Тюменская область","Ишимский муниципальный район","71626000","Десятовское","71626420","26375273","МУП \"Коммунальщик\"","7205011359","720501001","производство (некомбинированная выработка)+передача+сбыт","WARM"]
[175,"Тюменская область","Ишимский муниципальный район","71626000","Дымковское","71626424","26375273","МУП \"Коммунальщик\"","7205011359","720501001","производство (некомбинированная выработка)+передача+сбыт","WARM"]
[176,"Тюменская область","Ишимский муниципальный район","71626000","Ишимский муниципальный район","71626000","26375326","ИП Фомин Н.П.","721700181300","отсутствует","производство (некомбинированная выработка)+передача+сбыт","WARM"]
[177,"Тюменская область","Ишимский муниципальный район","71626000","Ишимский муниципальный район","71626000","26375273","МУП \"Коммунальщик\"","7205011359","720501001","производство (некомбинированная выработка)+передача+сбыт","WARM"]
[178,"Тюменская область","Ишимский муниципальный район","71626000","Карасульское","71626428","26375273","МУП \"Коммунальщик\"","7205011359","720501001","производство (некомбинированная выработка)+передача+сбыт","WARM"]
[179,"Тюменская область","Ишимский муниципальный район","71626000","Карасульское","71626428","26375620","Свердловская дирекция по тепловодоснабжению - структурное подразделение центральной дирекции по тепловодоснабжению - филиала ОАО \"РЖД\"","7708503727","665931051","производство (некомбинированная выработка)+передача+сбыт","WARM"]
[180,"Тюменская область","Ишимский муниципальный район","71626000","Клепиковское","71626432","26375273","МУП \"Коммунальщик\"","7205011359","720501001","производство (некомбинированная выработка)+передача+сбыт","WARM"]
[181,"Тюменская область","Ишимский муниципальный район","71626000","Ларихинское","71626436","26375273","МУП \"Коммунальщик\"","7205011359","720501001","производство (некомбинированная выработка)+передача+сбыт","WARM"]
[182,"Тюменская область","Ишимский муниципальный район","71626000","Мизоновское","71626440","26375326","ИП Фомин Н.П.","721700181300","отсутствует","производство (некомбинированная выработка)+передача+сбыт","WARM"]
[183,"Тюменская область","Ишимский муниципальный район","71626000","Неволинское","71626442","26375326","ИП Фомин Н.П.","721700181300","отсутствует","производство (некомбинированная выработка)+передача+сбыт","WARM"]
[184,"Тюменская область","Ишимский муниципальный район","71626000","Новолоктинское","71626444","26375326","ИП Фомин Н.П.","721700181300","отсутствует","производство (некомбинированная выработка)+передача+сбыт","WARM"]
[185,"Тюменская область","Ишимский муниципальный район","71626000","Новотравнинское","71626448","26375273","МУП \"Коммунальщик\"","7205011359","720501001","производство (некомбинированная выработка)+передача+сбыт","WARM"]
[186,"Тюменская область","Ишимский муниципальный район","71626000","Пахомовское","71626452","26375273","МУП \"Коммунальщик\"","7205011359","720501001","производство (некомбинированная выработка)+передача+сбыт","WARM"]
[187,"Тюменская область","Ишимский муниципальный район","71626000","Первопесьяновское","71626456","26375273","МУП \"Коммунальщик\"","7205011359","720501001","производство (некомбинированная выработка)+передача+сбыт","WARM"]
[188,"Тюменская область","Ишимский муниципальный район","71626000","Плешковское","71626460","26375273","МУП \"Коммунальщик\"","7205011359","720501001","производство (некомбинированная выработка)+передача+сбыт","WARM"]
[189,"Тюменская область","Ишимский муниципальный район","71626000","Прокуткинское","71626464","26375326","ИП Фомин Н.П.","721700181300","отсутствует","производство (некомбинированная выработка)+передача+сбыт","WARM"]
[190,"Тюменская область","Ишимский муниципальный район","71626000","Равнецкое","71626468","26375326","ИП Фомин Н.П.","721700181300","отсутствует","производство (некомбинированная выработка)+передача+сбыт","WARM"]
[191,"Тюменская область","Ишимский муниципальный район","71626000","Равнецкое","71626468","26375273","МУП \"Коммунальщик\"","7205011359","720501001","производство (некомбинированная выработка)+передача+сбыт","WARM"]
[192,"Тюменская область","Ишимский муниципальный район","71626000","Стрехнинское","71626472","26375273","МУП \"Коммунальщик\"","7205011359","720501001","производство (некомбинированная выработка)+передача+сбыт","WARM"]
[193,"Тюменская область","Ишимский муниципальный район","71626000","Тоболовское","71626476","26375273","МУП \"Коммунальщик\"","7205011359","720501001","производство (некомбинированная выработка)+передача+сбыт","WARM"]
[194,"Тюменская область","Ишимский муниципальный район","71626000","Черемшанское","71626484","26375273","МУП \"Коммунальщик\"","7205011359","720501001","производство (некомбинированная выработка)+передача+сбыт","WARM"]
[195,"Тюменская область","Ишимский муниципальный район","71626000","Шаблыкинское","71626488","26375273","МУП \"Коммунальщик\"","7205011359","720501001","производство (некомбинированная выработка)+передача+сбыт","WARM"]
[196,"Тюменская область","Казанский муниципальный район","71630000","Афонькинское","71630405","26375333","МУП ЖКХ Казанского района","7218004920","721801001","производство (некомбинированная выработка)+передача+сбыт","WARM"]
[197,"Тюменская область","Казанский муниципальный район","71630000","Большеченчерское","71630410","26375333","МУП ЖКХ Казанского района","7218004920","721801001","производство (некомбинированная выработка)+передача+сбыт","WARM"]
[198,"Тюменская область","Казанский муниципальный район","71630000","Большеярковское","71630415","26375333","МУП ЖКХ Казанского района","7218004920","721801001","производство (некомбинированная выработка)+передача+сбыт","WARM"]
[199,"Тюменская область","Казанский муниципальный район","71630000","Гагарьевское","71630420","26375333","МУП ЖКХ Казанского района","7218004920","721801001","производство (некомбинированная выработка)+передача+сбыт","WARM"]
[200,"Тюменская область","Казанский муниципальный район","71630000","Дубынское","71630425","26375333","МУП ЖКХ Казанского района","7218004920","721801001","производство (некомбинированная выработка)+передача+сбыт","WARM"]
[201,"Тюменская область","Казанский муниципальный район","71630000","Ильинское","71630430","26375333","МУП ЖКХ Казанского района","7218004920","721801001","производство (некомбинированная выработка)+передача+сбыт","WARM"]
[202,"Тюменская область","Казанский муниципальный район","71630000","Казанский муниципальный район","71630000","26375333","МУП ЖКХ Казанского района","7218004920","721801001","производство (некомбинированная выработка)+передача+сбыт","WARM"]
[203,"Тюменская область","Казанский муниципальный район","71630000","Казанское","71630432","26375333","МУП ЖКХ Казанского района","7218004920","721801001","производство (некомбинированная выработка)+передача+сбыт","WARM"]
[204,"Тюменская область","Казанский муниципальный район","71630000","Новоселезневское","71630433","26375333","МУП ЖКХ Казанского района","7218004920","721801001","производство (некомбинированная выработка)+передача+сбыт","WARM"]
[205,"Тюменская область","Казанский муниципальный район","71630000","Огневское","71630435","26375333","МУП ЖКХ Казанского района","7218004920","721801001","производство (некомбинированная выработка)+передача+сбыт","WARM"]
[206,"Тюменская область","Казанский муниципальный район","71630000","Пешневское","71630440","26375333","МУП ЖКХ Казанского района","7218004920","721801001","производство (некомбинированная выработка)+передача+сбыт","WARM"]
[207,"Тюменская область","Казанский муниципальный район","71630000","Смирновское","71630445","26375333","МУП ЖКХ Казанского района","7218004920","721801001","производство (некомбинированная выработка)+передача+сбыт","WARM"]
[208,"Тюменская область","Казанский муниципальный район","71630000","Челюскинское","71630450","26375333","МУП ЖКХ Казанского района","7218004920","721801001","производство (некомбинированная выработка)+передача+сбыт","WARM"]
[209,"Тюменская область","Казанский муниципальный район","71630000","Чирковское","71630452","26375333","МУП ЖКХ Казанского района","7218004920","721801001","производство (некомбинированная выработка)+передача+сбыт","WARM"]
[210,"Тюменская область","Казанский муниципальный район","71630000","Яровское","71630455","26375333","МУП ЖКХ Казанского района","7218004920","721801001","производство (некомбинированная выработка)+передача+сбыт","WARM"]
[211,"Тюменская область","Нижнетавдинский муниципальный район","71632000","Андрюшинское","71632404","27356445","ООО \"Тавда-Уют\"","7224048202","722401001","производство (некомбинированная выработка)+передача+сбыт","WARM"]
[212,"Тюменская область","Нижнетавдинский муниципальный район","71632000","Березовское","71632412","27356445","ООО \"Тавда-Уют\"","7224048202","722401001","производство (некомбинированная выработка)+передача+сбыт","WARM"]
[213,"Тюменская область","Нижнетавдинский муниципальный район","71632000","Бухтальское","71632416","27356445","ООО \"Тавда-Уют\"","7224048202","722401001","производство (некомбинированная выработка)+передача+сбыт","WARM"]
[214,"Тюменская область","Нижнетавдинский муниципальный район","71632000","Велижанское","71632420","27356445","ООО \"Тавда-Уют\"","7224048202","722401001","производство (некомбинированная выработка)+передача+сбыт","WARM"]
[215,"Тюменская область","Нижнетавдинский муниципальный район","71632000","Искинское","71632428","27356445","ООО \"Тавда-Уют\"","7224048202","722401001","производство (некомбинированная выработка)+передача+сбыт","WARM"]
[216,"Тюменская область","Нижнетавдинский муниципальный район","71632000","Ключевское","71632440","27356445","ООО \"Тавда-Уют\"","7224048202","722401001","производство (некомбинированная выработка)+передача+сбыт","WARM"]
[217,"Тюменская область","Нижнетавдинский муниципальный район","71632000","Ключевское","71632440","27580677","Тюменское УМН АО \"Транснефть-Сибирь\"","7201000726","720302001","производство (некомбинированная выработка)+передача+сбыт","WARM"]
[218,"Тюменская область","Нижнетавдинский муниципальный район","71632000","Миясское","71632448","27356445","ООО \"Тавда-Уют\"","7224048202","722401001","производство (некомбинированная выработка)+передача+сбыт","WARM"]
[219,"Тюменская область","Нижнетавдинский муниципальный район","71632000","Нижнетавдинский муниципальный район","71632000","27356445","ООО \"Тавда-Уют\"","7224048202","722401001","производство (некомбинированная выработка)+передача+сбыт","WARM"]
[220,"Тюменская область","Нижнетавдинский муниципальный район","71632000","Нижнетавдинский муниципальный район","71632000","26381312","ООО \"Тюмень Водоканал\"","7204095194","720301001","производство (некомбинированная выработка)+передача+сбыт","WARM"]
[221,"Тюменская область","Нижнетавдинский муниципальный район","71632000","Нижнетавдинский муниципальный район","71632000","27580677","Тюменское УМН АО \"Транснефть-Сибирь\"","7201000726","720302001","производство (некомбинированная выработка)+передача+сбыт","WARM"]
[222,"Тюменская область","Нижнетавдинский муниципальный район","71632000","Нижнетавдинское","71632450","27356445","ООО \"Тавда-Уют\"","7224048202","722401001","производство (некомбинированная выработка)+передача+сбыт","WARM"]
[223,"Тюменская область","Нижнетавдинский муниципальный район","71632000","Нижнетавдинское","71632450","26607640","Филиал АО \"Тюменьэнерго\"-\"Тюменские распределительные сети\"","8602060185","860201001","производство (некомбинированная выработка)+передача+сбыт","WARM"]
[224,"Тюменская область","Нижнетавдинский муниципальный район","71632000","Новоникольское","71632452","27356445","ООО \"Тавда-Уют\"","7224048202","722401001","Передача+Сбыт","WARM"]
[225,"Тюменская область","Нижнетавдинский муниципальный район","71632000","Новотроицкое","71632456","27356445","ООО \"Тавда-Уют\"","7224048202","722401001","производство (некомбинированная выработка)","WARM"]
[226,"Тюменская область","Нижнетавдинский муниципальный район","71632000","Тавдинское","71632469","27356445","ООО \"Тавда-Уют\"","7224048202","722401001","производство (некомбинированная выработка)+передача+сбыт","WARM"]
[227,"Тюменская область","Нижнетавдинский муниципальный район","71632000","Тарманское","71632472","27356445","ООО \"Тавда-Уют\"","7224048202","722401001","производство (некомбинированная выработка)+передача+сбыт","WARM"]
[228,"Тюменская область","Нижнетавдинский муниципальный район","71632000","Тюневское","71632475","27356445","ООО \"Тавда-Уют\"","7224048202","722401001","производство (некомбинированная выработка)+передача+сбыт","WARM"]
[229,"Тюменская область","Нижнетавдинский муниципальный район","71632000","Тюневское","71632475","26381312","ООО \"Тюмень Водоканал\"","7204095194","720301001","производство (некомбинированная выработка)+передача+сбыт","WARM"]
[230,"Тюменская область","Нижнетавдинский муниципальный район","71632000","Черепановское","71632478","27356445","ООО \"Тавда-Уют\"","7224048202","722401001","производство (некомбинированная выработка)+передача+сбыт","WARM"]
[231,"Тюменская область","Нижнетавдинский муниципальный район","71632000","Чугунаевское","71632482","27356445","ООО \"Тавда-Уют\"","7224048202","722401001","производство (некомбинированная выработка)+передача+сбыт","WARM"]
[232,"Тюменская область","Омутинский муниципальный район","71634000","Большекрасноярское","71634411","28859642","ООО \"Ромист\"","7220005487","722001001","производство (некомбинированная выработка)+передача+сбыт","WARM"]
[233,"Тюменская область","Омутинский муниципальный район","71634000","Вагайское","71634415","28859642","ООО \"Ромист\"","7220005487","722001001","производство (некомбинированная выработка)+передача+сбыт","WARM"]
[234,"Тюменская область","Омутинский муниципальный район","71634000","Журавлевское","71634422","26375352","ООО \"Ромист\"","7224032562","720901001","производство (некомбинированная выработка)+передача+сбыт","WARM"]
[235,"Тюменская область","Омутинский муниципальный район","71634000","Журавлевское","71634422","28859642","ООО \"Ромист\"","7220005487","722001001","производство (некомбинированная выработка)+передача+сбыт","WARM"]
[236,"Тюменская область","Омутинский муниципальный район","71634000","Окуневское","71634444","28859642","ООО \"Ромист\"","7220005487","722001001","производство (некомбинированная выработка)+передача+сбыт","WARM"]
[237,"Тюменская область","Омутинский муниципальный район","71634000","Омутинский муниципальный район","71634000","26375352","ООО \"Ромист\"","7224032562","720901001","производство (некомбинированная выработка)+передача+сбыт","WARM"]
[238,"Тюменская область","Омутинский муниципальный район","71634000","Омутинский муниципальный район","71634000","28859642","ООО \"Ромист\"","7220005487","722001001","производство (некомбинированная выработка)+передача+сбыт","WARM"]
[239,"Тюменская область","Омутинский муниципальный район","71634000","Омутинский муниципальный район","71634000","26375620","Свердловская дирекция по тепловодоснабжению - структурное подразделение центральной дирекции по тепловодоснабжению - филиала ОАО \"РЖД\"","7708503727","665931051","производство (некомбинированная выработка)+передача+сбыт","WARM"]
[240,"Тюменская область","Омутинский муниципальный район","71634000","Омутинское","71634448","28859642","ООО \"Ромист\"","7220005487","722001001","производство (некомбинированная выработка)+передача+сбыт","WARM"]
[241,"Тюменская область","Омутинский муниципальный район","71634000","Омутинское","71634448","26375620","Свердловская дирекция по тепловодоснабжению - структурное подразделение центральной дирекции по тепловодоснабжению - филиала ОАО \"РЖД\"","7708503727","665931051","производство (некомбинированная выработка)+передача+сбыт","WARM"]
[242,"Тюменская область","Омутинский муниципальный район","71634000","Ситниковское","71634455","26375352","ООО \"Ромист\"","7224032562","720901001","производство (некомбинированная выработка)+передача+сбыт","WARM"]
[243,"Тюменская область","Омутинский муниципальный район","71634000","Ситниковское","71634455","28859642","ООО \"Ромист\"","7220005487","722001001","производство (некомбинированная выработка)+передача+сбыт","WARM"]
[244,"Тюменская область","Омутинский муниципальный район","71634000","Шабановское","71634466","28859642","ООО \"Ромист\"","7220005487","722001001","производство (некомбинированная выработка)+передача+сбыт","WARM"]
[245,"Тюменская область","Омутинский муниципальный район","71634000","Южно-Плетневское","71634477","28859642","ООО \"Ромист\"","7220005487","722001001","производство (некомбинированная выработка)+передача+сбыт","WARM"]
[246,"Тюменская область","Сладковский муниципальный район","71636000","Александровское","71636405","26375342","Сладковское МУП ЖКХ","7221001460","722101001","производство (некомбинированная выработка)+передача+сбыт","WARM"]
[247,"Тюменская область","Сладковский муниципальный район","71636000","Лопазновское","71636410","26375342","Сладковское МУП ЖКХ","7221001460","722101001","производство (некомбинированная выработка)+передача+сбыт","WARM"]
[248,"Тюменская область","Сладковский муниципальный район","71636000","Майское","71636415","26375342","Сладковское МУП ЖКХ","7221001460","722101001","производство (некомбинированная выработка)+передача+сбыт","WARM"]
[249,"Тюменская область","Сладковский муниципальный район","71636000","Маслянское","71636420","26375342","Сладковское МУП ЖКХ","7221001460","722101001","производство (некомбинированная выработка)+передача+сбыт","WARM"]
[250,"Тюменская область","Сладковский муниципальный район","71636000","Менжинское","71636425","26375342","Сладковское МУП ЖКХ","7221001460","722101001","производство (некомбинированная выработка)+передача+сбыт","WARM"]
[251,"Тюменская область","Сладковский муниципальный район","71636000","Никулинское","71636430","26375342","Сладковское МУП ЖКХ","7221001460","722101001","производство (некомбинированная выработка)+передача+сбыт","WARM"]
[252,"Тюменская область","Сладковский муниципальный район","71636000","Новоандреевское","71636435","26375342","Сладковское МУП ЖКХ","7221001460","722101001","производство (некомбинированная выработка)+передача+сбыт","WARM"]
[253,"Тюменская область","Сладковский муниципальный район","71636000","Сладковский муниципальный район","71636000","26375342","Сладковское МУП ЖКХ","7221001460","722101001","производство (некомбинированная выработка)+передача+сбыт","WARM"]
[254,"Тюменская область","Сладковский муниципальный район","71636000","Сладковское","71636445","26375342","Сладковское МУП ЖКХ","7221001460","722101001","производство (некомбинированная выработка)+передача+сбыт","WARM"]
[255,"Тюменская область","Сладковский муниципальный район","71636000","Степновское","71636450","26375342","Сладковское МУП ЖКХ","7221001460","722101001","производство (некомбинированная выработка)+передача+сбыт","WARM"]
[256,"Тюменская область","Сладковский муниципальный район","71636000","Усовское","71636455","26375342","Сладковское МУП ЖКХ","7221001460","722101001","производство (некомбинированная выработка)+передача+сбыт","WARM"]
[257,"Тюменская область","Сорокинский муниципальный район","71638000","Александровское","71638410","26558197","ООО \"Сорокинские коммунальные системы\"","7222018509","720501001","производство (некомбинированная выработка)+передача+сбыт","WARM"]
[258,"Тюменская область","Сорокинский муниципальный район","71638000","Ворсихинское","71638420","26504124","Ишимское РНУ АО \"Транснефть- Западная Сибирь\"","5502020634","720543001","производство (некомбинированная выработка)","WARM"]
[259,"Тюменская область","Сорокинский муниципальный район","71638000","Ворсихинское","71638420","26504124","Ишимское РНУ АО \"Транснефть- Западная Сибирь\"","5502020634","720543001","производство (некомбинированная выработка)+передача","WARM"]
[260,"Тюменская область","Сорокинский муниципальный район","71638000","Ворсихинское","71638420","26558197","ООО \"Сорокинские коммунальные системы\"","7222018509","720501001","производство (некомбинированная выработка)+передача+сбыт","WARM"]
[261,"Тюменская область","Сорокинский муниципальный район","71638000","Готопутовское","71638430","26558197","ООО \"Сорокинские коммунальные системы\"","7222018509","720501001","производство (некомбинированная выработка)+передача+сбыт","WARM"]
[262,"Тюменская область","Сорокинский муниципальный район","71638000","Знаменщиковское","71638440","26558197","ООО \"Сорокинские коммунальные системы\"","7222018509","720501001","производство (некомбинированная выработка)+передача+сбыт","WARM"]
[263,"Тюменская область","Сорокинский муниципальный район","71638000","Пинигинское","71638470","26558197","ООО \"Сорокинские коммунальные системы\"","7222018509","720501001","производство (некомбинированная выработка)+передача+сбыт","WARM"]
[264,"Тюменская область","Сорокинский муниципальный район","71638000","Покровское","71638480","26558197","ООО \"Сорокинские коммунальные системы\"","7222018509","720501001","производство (некомбинированная выработка)+передача+сбыт","WARM"]
[265,"Тюменская область","Сорокинский муниципальный район","71638000","Сорокинский муниципальный район","71638000","26504124","Ишимское РНУ АО \"Транснефть- Западная Сибирь\"","5502020634","720543001","производство (некомбинированная выработка)+передача+сбыт","WARM"]
[266,"Тюменская область","Сорокинский муниципальный район","71638000","Сорокинский муниципальный район","71638000","26558197","ООО \"Сорокинские коммунальные системы\"","7222018509","720501001","производство (некомбинированная выработка)+передача+сбыт","WARM"]
[267,"Тюменская область","Сорокинский муниципальный район","71638000","Сорокинское","71638490","26558197","ООО \"Сорокинские коммунальные системы\"","7222018509","720501001","производство (некомбинированная выработка)+передача+сбыт","WARM"]
[268,"Тюменская область","Тобольский муниципальный район","71642000","Абалакское","71642405","30852439","МАОУ \"Нижнеаремзянская СОШ\"","7223009345","720601001","производство (некомбинированная выработка)+передача+сбыт","WARM"]
[269,"Тюменская область","Тобольский муниципальный район","71642000","Абалакское","71642405","30797628","МАОУ Сетовская СОШ","7206026083","720601001","производство (некомбинированная выработка)+передача+сбыт","WARM"]
[270,"Тюменская область","Тобольский муниципальный район","71642000","Абалакское","71642405","27915687","МУП ЖКХ Тобольского района","7206045872","720601001","производство (некомбинированная выработка)+передача+сбыт","WARM"]
[271,"Тюменская область","Тобольский муниципальный район","71642000","Ачирское","71642407","30852439","МАОУ \"Нижнеаремзянская СОШ\"","7223009345","720601001","производство (некомбинированная выработка)+передача+сбыт","WARM"]
[272,"Тюменская область","Тобольский муниципальный район","71642000","Ачирское","71642407","30797628","МАОУ Сетовская СОШ","7206026083","720601001","производство (некомбинированная выработка)+передача+сбыт","WARM"]
[273,"Тюменская область","Тобольский муниципальный район","71642000","Байкаловское","71642410","30852439","МАОУ \"Нижнеаремзянская СОШ\"","7223009345","720601001","производство (некомбинированная выработка)+передача+сбыт","WARM"]
[274,"Тюменская область","Тобольский муниципальный район","71642000","Байкаловское","71642410","30797628","МАОУ Сетовская СОШ","7206026083","720601001","производство (некомбинированная выработка)+передача+сбыт","WARM"]
[275,"Тюменская область","Тобольский муниципальный район","71642000","Байкаловское","71642410","26375344","МУП \"Байкаловский ККП\"","7223000825","722301001","производство (некомбинированная выработка)+передача+сбыт","WARM"]
[276,"Тюменская область","Тобольский муниципальный район","71642000","Башковское","71642425","30852439","МАОУ \"Нижнеаремзянская СОШ\"","7223009345","720601001","производство (некомбинированная выработка)+передача+сбыт","WARM"]
[277,"Тюменская область","Тобольский муниципальный район","71642000","Башковское","71642425","30797628","МАОУ Сетовская СОШ","7206026083","720601001","производство (некомбинированная выработка)+передача+сбыт","WARM"]
[278,"Тюменская область","Тобольский муниципальный район","71642000","Башковское","71642425","27915687","МУП ЖКХ Тобольского района","7206045872","720601001","производство (некомбинированная выработка)+передача+сбыт","WARM"]
[279,"Тюменская область","Тобольский муниципальный район","71642000","Булашовское","71642415","30852439","МАОУ \"Нижнеаремзянская СОШ\"","7223009345","720601001","производство (некомбинированная выработка)+передача+сбыт","WARM"]
[280,"Тюменская область","Тобольский муниципальный район","71642000","Булашовское","71642415","30797628","МАОУ Сетовская СОШ","7206026083","720601001","производство (некомбинированная выработка)+передача+сбыт","WARM"]
[281,"Тюменская область","Тобольский муниципальный район","71642000","Верхнеаремзянское","71642420","30852439","МАОУ \"Нижнеаремзянская СОШ\"","7223009345","720601001","производство (некомбинированная выработка)+передача+сбыт","WARM"]
[282,"Тюменская область","Тобольский муниципальный район","71642000","Верхнеаремзянское","71642420","30797628","МАОУ Сетовская СОШ","7206026083","720601001","производство (некомбинированная выработка)+передача+сбыт","WARM"]
[283,"Тюменская область","Тобольский муниципальный район","71642000","Ворогушинское","71642430","30852439","МАОУ \"Нижнеаремзянская СОШ\"","7223009345","720601001","производство (некомбинированная выработка)+передача+сбыт","WARM"]
[284,"Тюменская область","Тобольский муниципальный район","71642000","Ворогушинское","71642430","30797628","МАОУ Сетовская СОШ","7206026083","720601001","производство (некомбинированная выработка)+передача+сбыт","WARM"]
[285,"Тюменская область","Тобольский муниципальный район","71642000","Ворогушинское","71642430","27915687","МУП ЖКХ Тобольского района","7206045872","720601001","производство (некомбинированная выработка)+передача+сбыт","WARM"]
[286,"Тюменская область","Тобольский муниципальный район","71642000","Дегтяревское","71642435","30852439","МАОУ \"Нижнеаремзянская СОШ\"","7223009345","720601001","производство (некомбинированная выработка)+передача+сбыт","WARM"]
[287,"Тюменская область","Тобольский муниципальный район","71642000","Дегтяревское","71642435","30797628","МАОУ Сетовская СОШ","7206026083","720601001","производство (некомбинированная выработка)+передача+сбыт","WARM"]
[288,"Тюменская область","Тобольский муниципальный район","71642000","Ермаковское","71642440","30852439","МАОУ \"Нижнеаремзянская СОШ\"","7223009345","720601001","производство (некомбинированная выработка)+передача+сбыт","WARM"]
[289,"Тюменская область","Тобольский муниципальный район","71642000","Ермаковское","71642440","30797628","МАОУ Сетовская СОШ","7206026083","720601001","производство (некомбинированная выработка)+передача+сбыт","WARM"]
[290,"Тюменская область","Тобольский муниципальный район","71642000","Ермаковское","71642440","27915687","МУП ЖКХ Тобольского района","7206045872","720601001","Передача+Сбыт","WARM"]
[291,"Тюменская область","Тобольский муниципальный район","71642000","Ермаковское","71642440","26551012","Тобольское УМН АО \"Транснефть-Сибирь\"","7201000726","720602001","производство (некомбинированная выработка)+передача+сбыт","WARM"]
[292,"Тюменская область","Тобольский муниципальный район","71642000","Загваздинское","71642445","30852439","МАОУ \"Нижнеаремзянская СОШ\"","7223009345","720601001","производство (некомбинированная выработка)+передача+сбыт","WARM"]
[293,"Тюменская область","Тобольский муниципальный район","71642000","Загваздинское","71642445","30797628","МАОУ Сетовская СОШ","7206026083","720601001","производство (некомбинированная выработка)+передача+сбыт","WARM"]
[294,"Тюменская область","Тобольский муниципальный район","71642000","Карачинское","71642450","30852439","МАОУ \"Нижнеаремзянская СОШ\"","7223009345","720601001","производство (некомбинированная выработка)+передача+сбыт","WARM"]
[295,"Тюменская область","Тобольский муниципальный район","71642000","Карачинское","71642450","30797628","МАОУ Сетовская СОШ","7206026083","720601001","производство (некомбинированная выработка)+передача+сбыт","WARM"]
[296,"Тюменская область","Тобольский муниципальный район","71642000","Кутарбитское","71642455","30852439","МАОУ \"Нижнеаремзянская СОШ\"","7223009345","720601001","производство (некомбинированная выработка)+передача+сбыт","WARM"]
[297,"Тюменская область","Тобольский муниципальный район","71642000","Кутарбитское","71642455","30797628","МАОУ Сетовская СОШ","7206026083","720601001","производство (некомбинированная выработка)+передача+сбыт","WARM"]
[298,"Тюменская область","Тобольский муниципальный район","71642000","Лайтамакское","71642460","30852439","МАОУ \"Нижнеаремзянская СОШ\"","7223009345","720601001","производство (некомбинированная выработка)+передача+сбыт","WARM"]
[299,"Тюменская область","Тобольский муниципальный район","71642000","Лайтамакское","71642460","30797628","МАОУ Сетовская СОШ","7206026083","720601001","производство (некомбинированная выработка)+передача+сбыт","WARM"]
[300,"Тюменская область","Тобольский муниципальный район","71642000","Малозоркальцевское","71642462","30852439","МАОУ \"Нижнеаремзянская СОШ\"","7223009345","720601001","производство (некомбинированная выработка)+передача+сбыт","WARM"]
[301,"Тюменская область","Тобольский муниципальный район","71642000","Малозоркальцевское","71642462","30797628","МАОУ Сетовская СОШ","7206026083","720601001","производство (некомбинированная выработка)+передача+сбыт","WARM"]
[302,"Тюменская область","Тобольский муниципальный район","71642000","Малозоркальцевское","71642462","27915687","МУП ЖКХ Тобольского района","7206045872","720601001","производство (некомбинированная выработка)+передача+сбыт","WARM"]
[303,"Тюменская область","Тобольский муниципальный район","71642000","Надцынское","71642465","30852439","МАОУ \"Нижнеаремзянская СОШ\"","7223009345","720601001","производство (некомбинированная выработка)+передача+сбыт","WARM"]
[304,"Тюменская область","Тобольский муниципальный район","71642000","Надцынское","71642465","30797628","МАОУ Сетовская СОШ","7206026083","720601001","производство (некомбинированная выработка)+передача+сбыт","WARM"]
[305,"Тюменская область","Тобольский муниципальный район","71642000","Надцынское","71642465","27915687","МУП ЖКХ Тобольского района","7206045872","720601001","производство (некомбинированная выработка)+передача+сбыт","WARM"]
[306,"Тюменская область","Тобольский муниципальный район","71642000","Овсянниковское","71642470","30852439","МАОУ \"Нижнеаремзянская СОШ\"","7223009345","720601001","производство (некомбинированная выработка)+передача+сбыт","WARM"]
[307,"Тюменская область","Тобольский муниципальный район","71642000","Овсянниковское","71642470","30797628","МАОУ Сетовская СОШ","7206026083","720601001","производство (некомбинированная выработка)+передача+сбыт","WARM"]
[308,"Тюменская область","Тобольский муниципальный район","71642000","Полуяновское","71642473","30852439","МАОУ \"Нижнеаремзянская СОШ\"","7223009345","720601001","производство (некомбинированная выработка)+передача+сбыт","WARM"]
[309,"Тюменская область","Тобольский муниципальный район","71642000","Полуяновское","71642473","30797628","МАОУ Сетовская СОШ","7206026083","720601001","производство (некомбинированная выработка)+передача+сбыт","WARM"]
[310,"Тюменская область","Тобольский муниципальный район","71642000","Прииртышское","71642475","30852439","МАОУ \"Нижнеаремзянская СОШ\"","7223009345","720601001","производство (некомбинированная выработка)+передача+сбыт","WARM"]
[311,"Тюменская область","Тобольский муниципальный район","71642000","Прииртышское","71642475","30797628","МАОУ Сетовская СОШ","7206026083","720601001","производство (некомбинированная выработка)+передача+сбыт","WARM"]
[312,"Тюменская область","Тобольский муниципальный район","71642000","Прииртышское","71642475","28856888","ООО \"Тепломонтажналадка\"","7206035546","720601001","производство (некомбинированная выработка)+передача+сбыт","WARM"]
[313,"Тюменская область","Тобольский муниципальный район","71642000","Санниковское","71642480","30852439","МАОУ \"Нижнеаремзянская СОШ\"","7223009345","720601001","производство (некомбинированная выработка)+передача+сбыт","WARM"]
[314,"Тюменская область","Тобольский муниципальный район","71642000","Санниковское","71642480","30797628","МАОУ Сетовская СОШ","7206026083","720601001","производство (некомбинированная выработка)+передача+сбыт","WARM"]
[315,"Тюменская область","Тобольский муниципальный район","71642000","Сетовское","71642482","30852439","МАОУ \"Нижнеаремзянская СОШ\"","7223009345","720601001","производство (некомбинированная выработка)+передача+сбыт","WARM"]
[316,"Тюменская область","Тобольский муниципальный район","71642000","Сетовское","71642482","30797628","МАОУ Сетовская СОШ","7206026083","720601001","производство (некомбинированная выработка)+передача+сбыт","WARM"]
[317,"Тюменская область","Тобольский муниципальный район","71642000","Сетовское","71642482","27915687","МУП ЖКХ Тобольского района","7206045872","720601001","производство (некомбинированная выработка)+передача+сбыт","WARM"]
[318,"Тюменская область","Тобольский муниципальный район","71642000","Сетовское","71642482","26375620","Свердловская дирекция по тепловодоснабжению - структурное подразделение центральной дирекции по тепловодоснабжению - филиала ОАО \"РЖД\"","7708503727","665931051","производство (некомбинированная выработка)+передача+сбыт","WARM"]
[319,"Тюменская область","Тобольский муниципальный район","71642000","Тобольский муниципальный район","71642000","30852439","МАОУ \"Нижнеаремзянская СОШ\"","7223009345","720601001","производство (некомбинированная выработка)+передача+сбыт","WARM"]
[320,"Тюменская область","Тобольский муниципальный район","71642000","Тобольский муниципальный район","71642000","30797628","МАОУ Сетовская СОШ","7206026083","720601001","производство (некомбинированная выработка)+передача+сбыт","WARM"]
[321,"Тюменская область","Тобольский муниципальный район","71642000","Тобольский муниципальный район","71642000","26375344","МУП \"Байкаловский ККП\"","7223000825","722301001","производство (некомбинированная выработка)+передача+сбыт","WARM"]
[322,"Тюменская область","Тобольский муниципальный район","71642000","Тобольский муниципальный район","71642000","27915687","МУП ЖКХ Тобольского района","7206045872","720601001","производство (некомбинированная выработка)+передача","WARM"]
[323,"Тюменская область","Тобольский муниципальный район","71642000","Тобольский муниципальный район","71642000","28856888","ООО \"Тепломонтажналадка\"","7206035546","720601001","производство (некомбинированная выработка)+передача+сбыт","WARM"]
[324,"Тюменская область","Тобольский муниципальный район","71642000","Тобольский муниципальный район","71642000","26375620","Свердловская дирекция по тепловодоснабжению - структурное подразделение центральной дирекции по тепловодоснабжению - филиала ОАО \"РЖД\"","7708503727","665931051","производство (некомбинированная выработка)+передача+сбыт","WARM"]
[325,"Тюменская область","Тобольский муниципальный район","71642000","Тобольский муниципальный район","71642000","26551012","Тобольское УМН АО \"Транснефть-Сибирь\"","7201000726","720602001","производство (некомбинированная выработка)+передача+сбыт","WARM"]
[326,"Тюменская область","Тобольский муниципальный район","71642000","Ушаровское","71642485","30852439","МАОУ \"Нижнеаремзянская СОШ\"","7223009345","720601001","производство (некомбинированная выработка)+передача+сбыт","WARM"]
[327,"Тюменская область","Тобольский муниципальный район","71642000","Ушаровское","71642485","30797628","МАОУ Сетовская СОШ","7206026083","720601001","производство (некомбинированная выработка)+передача+сбыт","WARM"]
[328,"Тюменская область","Тобольский муниципальный район","71642000","Хмелевское","71642490","30852439","МАОУ \"Нижнеаремзянская СОШ\"","7223009345","720601001","производство (некомбинированная выработка)+передача+сбыт","WARM"]
[329,"Тюменская область","Тобольский муниципальный район","71642000","Хмелевское","71642490","30797628","МАОУ Сетовская СОШ","7206026083","720601001","производство (некомбинированная выработка)+передача+сбыт","WARM"]
[330,"Тюменская область","Тюменский муниципальный район","71644000","Андреевское","71644405","28960152","АО \"ГУ ЖКХ\"","5116000922","511601005","производство (некомбинированная выработка)+передача+сбыт","WARM"]
[331,"Тюменская область","Тюменский муниципальный район","71644000","Андреевское","71644405","26375345","МУП ЖКХ п.Боровский","7224002712","722401001","производство (некомбинированная выработка)+передача+сбыт","WARM"]
[332,"Тюменская область","Тюменский муниципальный район","71644000","Богандинское","71644410","28960152","АО \"ГУ ЖКХ\"","5116000922","511601005","Теплоноситель - Сбыт :: Производство :: Передача","WARM"]
[333,"Тюменская область","Тюменский муниципальный район","71644000","Богандинское","71644410","28960152","АО \"ГУ ЖКХ\"","5116000922","511601005","производство (некомбинированная выработка)+передача+сбыт","WARM"]
[334,"Тюменская область","Тюменский муниципальный район","71644000","Богандинское","71644410","26375345","МУП ЖКХ п.Боровский","7224002712","722401001","производство (некомбинированная выработка)+передача+сбыт","WARM"]
[335,"Тюменская область","Тюменский муниципальный район","71644000","Богандинское","71644410","30903763","ФГБУ \"ЦЖКУ\" МИНОБОРОНЫ РОССИИ","7729314745","770101001","Теплоноситель - Сбыт :: Производство :: Передача","WARM"]
[336,"Тюменская область","Тюменский муниципальный район","71644000","Богандинское","71644410","30903763","ФГБУ \"ЦЖКУ\" МИНОБОРОНЫ РОССИИ","7729314745","770101001","производство (некомбинированная выработка)+передача+сбыт","WARM"]
[337,"Тюменская область","Тюменский муниципальный район","71644000","Богандинское","71644410","30914574","Филиал ФГБУ \"ЦЖКУ\" МИНОБОРОНЫ РОССИИ (по ЦВО)","7729314745","667043001","Теплоноситель - Сбыт :: Производство :: Передача","WARM"]
[338,"Тюменская область","Тюменский муниципальный район","71644000","Богандинское","71644410","30914574","Филиал ФГБУ \"ЦЖКУ\" МИНОБОРОНЫ РОССИИ (по ЦВО)","7729314745","667043001","производство (некомбинированная выработка)+передача+сбыт","WARM"]
[339,"Тюменская область","Тюменский муниципальный район","71644000","Борковское","71644415","26433355","Каскаринское МУП ЖКХ","7224011989","722401001","производство (некомбинированная выработка)+передача+сбыт","WARM"]
[340,"Тюменская область","Тюменский муниципальный район","71644000","Борковское","71644415","26950305","МУП \"Ембаевское ЖКХ\"","7224043765","722401001","производство (некомбинированная выработка)+передача+сбыт","WARM"]
[341,"Тюменская область","Тюменский муниципальный район","71644000","Борковское","71644415","26375356","ООО \"Ембаевское ЖКХ\"","7224043765","722401001","производство (некомбинированная выработка)+передача+сбыт","WARM"]
[342,"Тюменская область","Тюменский муниципальный район","71644000","Борковское","71644415","27506018","ООО \"Партнер\"","7224036976","722401001","производство (некомбинированная выработка)+передача","WARM"]
[343,"Тюменская область","Тюменский муниципальный район","71644000","Борковское","71644415","28830004","ООО \"Техмонтаж\"","7203243280","720301001","производство (некомбинированная выработка)+передача+сбыт","WARM"]
[344,"Тюменская область","Тюменский муниципальный район","71644000","Горьковское","71644417","28960152","АО \"ГУ ЖКХ\"","5116000922","511601005","производство (некомбинированная выработка)+передача+сбыт","WARM"]
[345,"Тюменская область","Тюменский муниципальный район","71644000","Горьковское","71644417","26375355","МУП ЖКХ \"Содружество\"","7224038814","722401001","производство (некомбинированная выработка)+передача+сбыт","WARM"]
[346,"Тюменская область","Тюменский муниципальный район","71644000","Ембаевское","71644420","26505193","АО \"Сибнефтемаш\"","7224009228","722450001","производство (некомбинированная выработка)+передача+сбыт","WARM"]
[347,"Тюменская область","Тюменский муниципальный район","71644000","Ембаевское","71644420","26950305","МУП \"Ембаевское ЖКХ\"","7224043765","722401001","производство (некомбинированная выработка)+передача+сбыт","WARM"]
[348,"Тюменская область","Тюменский муниципальный район","71644000","Ембаевское","71644420","26375356","ООО \"Ембаевское ЖКХ\"","7224043765","722401001","производство (некомбинированная выработка)+передача+сбыт","WARM"]
[349,"Тюменская область","Тюменский муниципальный район","71644000","Каменское","71644425","26375355","МУП ЖКХ \"Содружество\"","7224038814","722401001","производство (некомбинированная выработка)+передача+сбыт","WARM"]
[350,"Тюменская область","Тюменский муниципальный район","71644000","Каскаринское","71644430","26360435","АО \"ПРОДО Тюменский бройлер\"","7224005872","722401001","производство (некомбинированная выработка)+передача+сбыт","WARM"]
[351,"Тюменская область","Тюменский муниципальный район","71644000","Каскаринское","71644430","26433355","Каскаринское МУП ЖКХ","7224011989","722401001","производство (некомбинированная выработка)+передача+сбыт","WARM"]
[352,"Тюменская область","Тюменский муниципальный район","71644000","Княжевское","71644435","28960152","АО \"ГУ ЖКХ\"","5116000922","511601005","производство (некомбинированная выработка)+передача+сбыт","WARM"]
[353,"Тюменская область","Тюменский муниципальный район","71644000","Кулаковское","71644440","26375355","МУП ЖКХ \"Содружество\"","7224038814","722401001","производство (некомбинированная выработка)+передача+сбыт","WARM"]
[354,"Тюменская область","Тюменский муниципальный район","71644000","Мальковское","71644445","26375353","МУП ЖКХ \"Мальковское\"","7224035080","722401001","производство (некомбинированная выработка)+передача+сбыт","WARM"]
[355,"Тюменская область","Тюменский муниципальный район","71644000","Московское","71644450","26375350","ООО \"МУП Московское ЖКХ\"","7224030300","722401001","производство (некомбинированная выработка)+передача+сбыт","WARM"]
[356,"Тюменская область","Тюменский муниципальный район","71644000","Московское","71644450","30371897","ООО \"ТЮМЕНЬГАЗСЕРВИС\"","7202135194","720301001","производство (некомбинированная выработка)+передача+сбыт","WARM"]
[357,"Тюменская область","Тюменский муниципальный район","71644000","Московское","71644450","26381312","ООО \"Тюмень Водоканал\"","7204095194","720301001","производство (некомбинированная выработка)+передача+сбыт","WARM"]
[358,"Тюменская область","Тюменский муниципальный район","71644000","Московское","71644450","28792615","ПАО \"СУЭНКО\"","7205011944","720301001","производство (некомбинированная выработка)+передача+сбыт","WARM"]
[359,"Тюменская область","Тюменский муниципальный район","71644000","Наримановское","71644452","26433392","МУП \"Новотарманское ПЖЭРП\"","7224033358","722401001","производство (некомбинированная выработка)+передача+сбыт","WARM"]
[360,"Тюменская область","Тюменский муниципальный район","71644000","Нижнепышминское","71644455","26375345","МУП ЖКХ п.Боровский","7224002712","722401001","производство (некомбинированная выработка)+передача+сбыт","WARM"]
[361,"Тюменская область","Тюменский муниципальный район","71644000","Новотарманское","71644456","26433392","МУП \"Новотарманское ПЖЭРП\"","7224033358","722401001","производство (некомбинированная выработка)+передача+сбыт","WARM"]
[362,"Тюменская область","Тюменский муниципальный район","71644000","Онохинское","71644458","26433646","МУЖЭП с.Онохино","7224031897","722401001","производство (некомбинированная выработка)+передача+сбыт","WARM"]
[363,"Тюменская область","Тюменский муниципальный район","71644000","Салаирское","71644470","26433392","МУП \"Новотарманское ПЖЭРП\"","7224033358","722401001","производство (некомбинированная выработка)+передача+сбыт","WARM"]
[364,"Тюменская область","Тюменский муниципальный район","71644000","Салаирское","71644470","28858595","ООО \"Санаторий \"Геолог\"","7224054816","722401001","производство (некомбинированная выработка)+передача+сбыт","WARM"]
[365,"Тюменская область","Тюменский муниципальный район","71644000","Созоновское","71644474","26433355","Каскаринское МУП ЖКХ","7224011989","722401001","производство (некомбинированная выработка)+передача+сбыт","WARM"]
[366,"Тюменская область","Тюменский муниципальный район","71644000","Созоновское","71644474","26950305","МУП \"Ембаевское ЖКХ\"","7224043765","722401001","производство (некомбинированная выработка)+передача+сбыт","WARM"]
[367,"Тюменская область","Тюменский муниципальный район","71644000","Созоновское","71644474","26375356","ООО \"Ембаевское ЖКХ\"","7224043765","722401001","производство (некомбинированная выработка)+передача+сбыт","WARM"]
[368,"Тюменская область","Тюменский муниципальный район","71644000","Созоновское","71644474","27506018","ООО \"Партнер\"","7224036976","722401001","производство (некомбинированная выработка)+передача","WARM"]
[369,"Тюменская область","Тюменский муниципальный район","71644000","Созоновское","71644474","28830004","ООО \"Техмонтаж\"","7203243280","720301001","производство (некомбинированная выработка)+передача+сбыт","WARM"]
[370,"Тюменская область","Тюменский муниципальный район","71644000","Тюменский муниципальный район","71644000","26381312","ООО \"Тюмень Водоканал\"","7204095194","720301001","производство (некомбинированная выработка)+передача+сбыт","WARM"]
[371,"Тюменская область","Тюменский муниципальный район","71644000","Тюменский муниципальный район","71644000","30914574","Филиал ФГБУ \"ЦЖКУ\" МИНОБОРОНЫ РОССИИ (по ЦВО)","7729314745","667043001","производство (некомбинированная выработка)","WARM"]
[372,"Тюменская область","Тюменский муниципальный район","71644000","Червишевское","71644480","26381312","ООО \"Тюмень Водоканал\"","7204095194","720301001","производство (некомбинированная выработка)+передача+сбыт","WARM"]
[373,"Тюменская область","Тюменский муниципальный район","71644000","Червишевское","71644480","26434973","ООО \"Червишевское ЖКХ\"","7224041334","722401001","производство (некомбинированная выработка)+передача+сбыт","WARM"]
[374,"Тюменская область","Тюменский муниципальный район","71644000","Чикчинское","71644485","26360450","АУ СОН Тюменской области центр \"Красная гвоздика\"","7224037151","722401001","производство (некомбинированная выработка)+передача+сбыт","WARM"]
[375,"Тюменская область","Тюменский муниципальный район","71644000","Чикчинское","71644485","26375353","МУП ЖКХ \"Мальковское\"","7224035080","722401001","производство (некомбинированная выработка)+передача+сбыт","WARM"]
[376,"Тюменская область","Тюменский муниципальный район","71644000","поселок Боровский","71644412","26375345","МУП ЖКХ п.Боровский","7224002712","722401001","производство (некомбинированная выработка)+передача+сбыт","WARM"]
[377,"Тюменская область","Тюменский муниципальный район","71644000","поселок Боровский","71644412","26375346","ПАО \"Птицефабрика \"Боровская\"","7224008030","722401001","производство (некомбинированная выработка)+передача+сбыт","WARM"]
[378,"Тюменская область","Тюменский муниципальный район","71644000","поселок Винзили","71644416","30356010","ООО \"Инвест-силикат-стройсервис\"","7224007051","722401001","производство (некомбинированная выработка)+передача+сбыт","WARM"]
[379,"Тюменская область","Тюменский муниципальный район","71644000","поселок Винзили","71644416","26375349","ООО \"МУП Винзилинское ЖКХ\"","7224030283","722401001","производство (некомбинированная выработка)+передача+сбыт","WARM"]
[380,"Тюменская область","Уватский муниципальный район","71648000","Алымское","71648405","26375362","МП \"Ивановское КП\"","7225004649","722501001","производство (некомбинированная выработка)+передача+сбыт","WARM"]
[381,"Тюменская область","Уватский муниципальный район","71648000","Горнослинкинское","71648410","30355572","Муниципальное предприятие \"Туртасское коммунальное предприятие Уватского муниципального района\"","7206042208","720601001","производство (некомбинированная выработка)+передача+сбыт","WARM"]
[382,"Тюменская область","Уватский муниципальный район","71648000","Демьянское","71648415","26375361","МП \"Демьянское КП\"","7225004624","722501001","производство (некомбинированная выработка)+передача+сбыт","WARM"]
[383,"Тюменская область","Уватский муниципальный район","71648000","Демьянское","71648415","28792615","ПАО \"СУЭНКО\"","7205011944","720301001","производство (некомбинированная выработка)+передача+сбыт","WARM"]
[384,"Тюменская область","Уватский муниципальный район","71648000","Демьянское","71648415","26375620","Свердловская дирекция по тепловодоснабжению - структурное подразделение центральной дирекции по тепловодоснабжению - филиала ОАО \"РЖД\"","7708503727","665931051","производство (некомбинированная выработка)+передача+сбыт","WARM"]
[385,"Тюменская область","Уватский муниципальный район","71648000","Демьянское","71648415","26551012","Тобольское УМН АО \"Транснефть-Сибирь\"","7201000726","720602001","производство (некомбинированная выработка)+передача+сбыт","WARM"]
[386,"Тюменская область","Уватский муниципальный район","71648000","Демьянское","71648415","26607640","Филиал АО \"Тюменьэнерго\"-\"Тюменские распределительные сети\"","8602060185","860201001","производство (некомбинированная выработка)+передача+сбыт","WARM"]
[387,"Тюменская область","Уватский муниципальный район","71648000","Ивановское","71648420","26375362","МП \"Ивановское КП\"","7225004649","722501001","производство (некомбинированная выработка)+передача+сбыт","WARM"]
[388,"Тюменская область","Уватский муниципальный район","71648000","Ивановское","71648420","26551012","Тобольское УМН АО \"Транснефть-Сибирь\"","7201000726","720602001","производство (некомбинированная выработка)+передача+сбыт","WARM"]
[389,"Тюменская область","Уватский муниципальный район","71648000","Красноярское","71648425","26375362","МП \"Ивановское КП\"","7225004649","722501001","производство (некомбинированная выработка)+передача+сбыт","WARM"]
[390,"Тюменская область","Уватский муниципальный район","71648000","Осинниковское","71648435","26375362","МП \"Ивановское КП\"","7225004649","722501001","производство (некомбинированная выработка)+передача+сбыт","WARM"]
[391,"Тюменская область","Уватский муниципальный район","71648000","Соровое","71648438","26375361","МП \"Демьянское КП\"","7225004624","722501001","производство (некомбинированная выработка)+передача+сбыт","WARM"]
[392,"Тюменская область","Уватский муниципальный район","71648000","Соровое","71648438","26551012","Тобольское УМН АО \"Транснефть-Сибирь\"","7201000726","720602001","производство (некомбинированная выработка)+сбыт","WARM"]
[393,"Тюменская область","Уватский муниципальный район","71648000","Туртасское","71648445","30355572","Муниципальное предприятие \"Туртасское коммунальное предприятие Уватского муниципального района\"","7206042208","720601001","производство (некомбинированная выработка)+передача+сбыт","WARM"]
[394,"Тюменская область","Уватский муниципальный район","71648000","Туртасское","71648445","26375620","Свердловская дирекция по тепловодоснабжению - структурное подразделение центральной дирекции по тепловодоснабжению - филиала ОАО \"РЖД\"","7708503727","665931051","производство (некомбинированная выработка)+передача+сбыт","WARM"]
[395,"Тюменская область","Уватский муниципальный район","71648000","Уватский муниципальный район","71648000","26375361","МП \"Демьянское КП\"","7225004624","722501001","производство (некомбинированная выработка)+передача+сбыт","WARM"]
[396,"Тюменская область","Уватский муниципальный район","71648000","Уватский муниципальный район","71648000","26375362","МП \"Ивановское КП\"","7225004649","722501001","производство (некомбинированная выработка)+передача+сбыт","WARM"]
[397,"Тюменская область","Уватский муниципальный район","71648000","Уватский муниципальный район","71648000","26522800","ООО \"Газпром энерго\" Сургутский филиал","7736186950","860202001","производство (некомбинированная выработка)+передача+сбыт","WARM"]
[398,"Тюменская область","Уватский муниципальный район","71648000","Уватский муниципальный район","71648000","26375620","Свердловская дирекция по тепловодоснабжению - структурное подразделение центральной дирекции по тепловодоснабжению - филиала ОАО \"РЖД\"","7708503727","665931051","производство (некомбинированная выработка)+передача+сбыт","WARM"]
[399,"Тюменская область","Уватский муниципальный район","71648000","Уватское","71648450","26375362","МП \"Ивановское КП\"","7225004649","722501001","производство (некомбинированная выработка)+передача+сбыт","WARM"]
[400,"Тюменская область","Уватский муниципальный район","71648000","Уватское","71648450","26551012","Тобольское УМН АО \"Транснефть-Сибирь\"","7201000726","720602001","Передача","WARM"]
[401,"Тюменская область","Упоровский муниципальный район","71650000","Буньковское","71650405","26375364","МУП \"РКХ-2\"","7226004881","720701001","производство (некомбинированная выработка)+передача+сбыт","WARM"]
[402,"Тюменская область","Упоровский муниципальный район","71650000","Бызовское","71650410","26375364","МУП \"РКХ-2\"","7226004881","720701001","производство (некомбинированная выработка)+передача+сбыт","WARM"]
[403,"Тюменская область","Упоровский муниципальный район","71650000","Видоновское","71650415","26375364","МУП \"РКХ-2\"","7226004881","720701001","производство (некомбинированная выработка)+передача+сбыт","WARM"]
[404,"Тюменская область","Упоровский муниципальный район","71650000","Емуртлинское","71650420","26375364","МУП \"РКХ-2\"","7226004881","720701001","производство (некомбинированная выработка)+передача+сбыт","WARM"]
[405,"Тюменская область","Упоровский муниципальный район","71650000","Ингалинское","71650425","26375364","МУП \"РКХ-2\"","7226004881","720701001","производство (некомбинированная выработка)+передача+сбыт","WARM"]
[406,"Тюменская область","Упоровский муниципальный район","71650000","Коркинское","71650430","26375364","МУП \"РКХ-2\"","7226004881","720701001","производство (некомбинированная выработка)+передача+сбыт","WARM"]
[407,"Тюменская область","Упоровский муниципальный район","71650000","Крашенининское","71650435","26375364","МУП \"РКХ-2\"","7226004881","720701001","производство (некомбинированная выработка)+передача+сбыт","WARM"]
[408,"Тюменская область","Упоровский муниципальный район","71650000","Липихинское","71650440","26375364","МУП \"РКХ-2\"","7226004881","720701001","производство (некомбинированная выработка)+передача+сбыт","WARM"]
[409,"Тюменская область","Упоровский муниципальный район","71650000","Нижнеманайское","71650445","26375364","МУП \"РКХ-2\"","7226004881","720701001","производство (некомбинированная выработка)+передача+сбыт","WARM"]
[410,"Тюменская область","Упоровский муниципальный район","71650000","Пятковское","71650450","26375364","МУП \"РКХ-2\"","7226004881","720701001","производство (некомбинированная выработка)+передача+сбыт","WARM"]
[411,"Тюменская область","Упоровский муниципальный район","71650000","Скородумское","71650455","26375364","МУП \"РКХ-2\"","7226004881","720701001","производство (некомбинированная выработка)+передача+сбыт","WARM"]
[412,"Тюменская область","Упоровский муниципальный район","71650000","Суерское","71650460","26375364","МУП \"РКХ-2\"","7226004881","720701001","производство (некомбинированная выработка)+передача+сбыт","WARM"]
[413,"Тюменская область","Упоровский муниципальный район","71650000","Упоровский муниципальный район","71650000","26375364","МУП \"РКХ-2\"","7226004881","720701001","производство (некомбинированная выработка)+передача+сбыт","WARM"]
[414,"Тюменская область","Упоровский муниципальный район","71650000","Упоровское","71650465","26375364","МУП \"РКХ-2\"","7226004881","720701001","производство (некомбинированная выработка)+передача+сбыт","WARM"]
[415,"Тюменская область","Упоровский муниципальный район","71650000","Чернаковское","71650470","26375364","МУП \"РКХ-2\"","7226004881","720701001","производство (некомбинированная выработка)+передача+сбыт","WARM"]
[416,"Тюменская область","Юргинский муниципальный район","71653000","Агаракское","71653405","26360460","МУП \"Юргинское ЖКХ\"","7227262324","722701001","производство (некомбинированная выработка)+передача+сбыт","WARM"]
[417,"Тюменская область","Юргинский муниципальный район","71653000","Бушуевское","71653420","26360460","МУП \"Юргинское ЖКХ\"","7227262324","722701001","производство (некомбинированная выработка)+передача+сбыт","WARM"]
[418,"Тюменская область","Юргинский муниципальный район","71653000","Володинское","71653425","26360460","МУП \"Юргинское ЖКХ\"","7227262324","722701001","производство (некомбинированная выработка)+передача+сбыт","WARM"]
[419,"Тюменская область","Юргинский муниципальный район","71653000","Зоновское","71653430","26360460","МУП \"Юргинское ЖКХ\"","7227262324","722701001","производство (некомбинированная выработка)+передача+сбыт","WARM"]
[420,"Тюменская область","Юргинский муниципальный район","71653000","Лабинское","71653440","26360460","МУП \"Юргинское ЖКХ\"","7227262324","722701001","производство (некомбинированная выработка)+передача+сбыт","WARM"]
[421,"Тюменская область","Юргинский муниципальный район","71653000","Лесное","71653443","26360460","МУП \"Юргинское ЖКХ\"","7227262324","722701001","производство (некомбинированная выработка)+передача+сбыт","WARM"]
[422,"Тюменская область","Юргинский муниципальный район","71653000","Новотаповское","71653447","26360460","МУП \"Юргинское ЖКХ\"","7227262324","722701001","производство (некомбинированная выработка)+передача+сбыт","WARM"]
[423,"Тюменская область","Юргинский муниципальный район","71653000","Северо-Плетневское","71653450","26360460","МУП \"Юргинское ЖКХ\"","7227262324","722701001","производство (некомбинированная выработка)+передача+сбыт","WARM"]
[424,"Тюменская область","Юргинский муниципальный район","71653000","Шипаковское","71653460","26360460","МУП \"Юргинское ЖКХ\"","7227262324","722701001","производство (некомбинированная выработка)+передача+сбыт","WARM"]
[425,"Тюменская область","Юргинский муниципальный район","71653000","Юргинский муниципальный район","71653000","26360460","МУП \"Юргинское ЖКХ\"","7227262324","722701001","производство (некомбинированная выработка)+передача+сбыт","WARM"]
[426,"Тюменская область","Юргинский муниципальный район","71653000","Юргинский муниципальный район","71653000","26375366","Юргинское МПП ЖКХ","7227000960","722701001","производство (некомбинированная выработка)+передача+сбыт","WARM"]
[427,"Тюменская область","Юргинский муниципальный район","71653000","Юргинское","71653465","26360460","МУП \"Юргинское ЖКХ\"","7227262324","722701001","производство (некомбинированная выработка)+передача+сбыт","WARM"]
[428,"Тюменская область","Юргинский муниципальный район","71653000","Юргинское","71653465","26375366","Юргинское МПП ЖКХ","7227000960","722701001","производство (некомбинированная выработка)+передача+сбыт","WARM"]
[429,"Тюменская область","Ялуторовский муниципальный район","71656000","Асланинское","71656405","28272431","МП \"Строй-проект\" Ялуторовского района","7207008129","720701001","производство (некомбинированная выработка)+передача+сбыт","WARM"]
[430,"Тюменская область","Ялуторовский муниципальный район","71656000","Беркутское","71656410","28272431","МП \"Строй-проект\" Ялуторовского района","7207008129","720701001","производство (некомбинированная выработка)+передача+сбыт","WARM"]
[431,"Тюменская область","Ялуторовский муниципальный район","71656000","Заводопетровское","71656413","28272431","МП \"Строй-проект\" Ялуторовского района","7207008129","720701001","производство (некомбинированная выработка)+передача+сбыт","WARM"]
[432,"Тюменская область","Ялуторовский муниципальный район","71656000","Зиновское","71656415","28272431","МП \"Строй-проект\" Ялуторовского района","7207008129","720701001","производство (некомбинированная выработка)+передача+сбыт","WARM"]
[433,"Тюменская область","Ялуторовский муниципальный район","71656000","Ивановское","71656420","28272431","МП \"Строй-проект\" Ялуторовского района","7207008129","720701001","производство (некомбинированная выработка)+передача+сбыт","WARM"]
[434,"Тюменская область","Ялуторовский муниципальный район","71656000","Карабашское","71656422","28272431","МП \"Строй-проект\" Ялуторовского района","7207008129","720701001","производство (некомбинированная выработка)+передача+сбыт","WARM"]
[435,"Тюменская область","Ялуторовский муниципальный район","71656000","Киевское","71656423","28272431","МП \"Строй-проект\" Ялуторовского района","7207008129","720701001","производство (некомбинированная выработка)+передача+сбыт","WARM"]
[436,"Тюменская область","Ялуторовский муниципальный район","71656000","Коктюльское","71656425","28272431","МП \"Строй-проект\" Ялуторовского района","7207008129","720701001","производство (некомбинированная выработка)+передача+сбыт","WARM"]
[437,"Тюменская область","Ялуторовский муниципальный район","71656000","Новоатьяловское","71656430","28272431","МП \"Строй-проект\" Ялуторовского района","7207008129","720701001","производство (некомбинированная выработка)+передача+сбыт","WARM"]
[438,"Тюменская область","Ялуторовский муниципальный район","71656000","Памятнинское","71656435","28272431","МП \"Строй-проект\" Ялуторовского района","7207008129","720701001","производство (некомбинированная выработка)+передача+сбыт","WARM"]
[439,"Тюменская область","Ялуторовский муниципальный район","71656000","Петелинское","71656440","28272431","МП \"Строй-проект\" Ялуторовского района","7207008129","720701001","производство (некомбинированная выработка)+передача+сбыт","WARM"]
[440,"Тюменская область","Ялуторовский муниципальный район","71656000","Ревдинское","71656445","28272431","МП \"Строй-проект\" Ялуторовского района","7207008129","720701001","производство (некомбинированная выработка)+передача+сбыт","WARM"]
[441,"Тюменская область","Ялуторовский муниципальный район","71656000","Сингульское","71656450","28272431","МП \"Строй-проект\" Ялуторовского района","7207008129","720701001","производство (некомбинированная выработка)+передача+сбыт","WARM"]
[442,"Тюменская область","Ялуторовский муниципальный район","71656000","Старокавдыкское","71656455","28272431","МП \"Строй-проект\" Ялуторовского района","7207008129","720701001","производство (некомбинированная выработка)+передача+сбыт","WARM"]
[443,"Тюменская область","Ялуторовский муниципальный район","71656000","Хохловское","71656460","28272431","МП \"Строй-проект\" Ялуторовского района","7207008129","720701001","производство (некомбинированная выработка)+передача+сбыт","WARM"]
[444,"Тюменская область","Ялуторовский муниципальный район","71656000","Ялуторовский муниципальный район","71656000","28272431","МП \"Строй-проект\" Ялуторовского района","7207008129","720701001","производство (некомбинированная выработка)+передача+сбыт","WARM"]
[445,"Тюменская область","Ялуторовский муниципальный район","71656000","Ялуторовский муниципальный район","71656000","30861530","ООО \"Тепло\"","7207018279","720701001","Передача+Сбыт","WARM"]
[446,"Тюменская область","Ялуторовский муниципальный район","71656000","Ялуторовский муниципальный район","71656000","30861530","ООО \"Тепло\"","7207018279","720701001","производство (некомбинированная выработка)+передача+сбыт","WARM"]
[447,"Тюменская область","Ярковский муниципальный район","71658000","Аксаринское","71658405","28003540","МП \"Стройсервис\"","7229008997","722901001","производство (некомбинированная выработка)+передача+сбыт","WARM"]
[448,"Тюменская область","Ярковский муниципальный район","71658000","Гилевское","71658410","28003540","МП \"Стройсервис\"","7229008997","722901001","производство (некомбинированная выработка)+передача+сбыт","WARM"]
[449,"Тюменская область","Ярковский муниципальный район","71658000","Дубровинское","71658415","28003540","МП \"Стройсервис\"","7229008997","722901001","производство (некомбинированная выработка)+передача+сбыт","WARM"]
[450,"Тюменская область","Ярковский муниципальный район","71658000","Иевлевское","71658420","28003540","МП \"Стройсервис\"","7229008997","722901001","производство (некомбинированная выработка)+передача+сбыт","WARM"]
[451,"Тюменская область","Ярковский муниципальный район","71658000","Караульноярское","71658425","28003540","МП \"Стройсервис\"","7229008997","722901001","производство (некомбинированная выработка)+передача+сбыт","WARM"]
[452,"Тюменская область","Ярковский муниципальный район","71658000","Маранское","71658430","28003540","МП \"Стройсервис\"","7229008997","722901001","производство (некомбинированная выработка)+передача+сбыт","WARM"]
[453,"Тюменская область","Ярковский муниципальный район","71658000","Новоалександровское","71658435","28003540","МП \"Стройсервис\"","7229008997","722901001","производство (некомбинированная выработка)+передача+сбыт","WARM"]
[454,"Тюменская область","Ярковский муниципальный район","71658000","Плехановское","71658440","28003540","МП \"Стройсервис\"","7229008997","722901001","производство (некомбинированная выработка)+передача+сбыт","WARM"]
[455,"Тюменская область","Ярковский муниципальный район","71658000","Покровское","71658445","28003540","МП \"Стройсервис\"","7229008997","722901001","производство (некомбинированная выработка)+передача+сбыт","WARM"]
[456,"Тюменская область","Ярковский муниципальный район","71658000","Сорокинское","71658450","28003540","МП \"Стройсервис\"","7229008997","722901001","производство (некомбинированная выработка)+передача+сбыт","WARM"]
[457,"Тюменская область","Ярковский муниципальный район","71658000","Староалександровское","71658455","28003540","МП \"Стройсервис\"","7229008997","722901001","производство (некомбинированная выработка)+передача+сбыт","WARM"]
[458,"Тюменская область","Ярковский муниципальный район","71658000","Усальское","71658460","28003540","МП \"Стройсервис\"","7229008997","722901001","производство (некомбинированная выработка)+передача+сбыт","WARM"]
[459,"Тюменская область","Ярковский муниципальный район","71658000","Щетковское","71658465","28003540","МП \"Стройсервис\"","7229008997","722901001","производство (некомбинированная выработка)+передача+сбыт","WARM"]
[460,"Тюменская область","Ярковский муниципальный район","71658000","Ярковский муниципальный район","71658000","28003540","МП \"Стройсервис\"","7229008997","722901001","производство (некомбинированная выработка)+передача+сбыт","WARM"]
[461,"Тюменская область","Ярковский муниципальный район","71658000","Ярковский муниципальный район","71658000","26522800","ООО \"Газпром энерго\" Сургутский филиал","7736186950","860202001","производство (некомбинированная выработка)+передача+сбыт","WARM"]
[462,"Тюменская область","Ярковский муниципальный район","71658000","Ярковское","71658470","28003540","МП \"Стройсервис\"","7229008997","722901001","производство (некомбинированная выработка)+передача+сбыт","WARM"]
[463,"Тюменская область","город Заводоуковск","71703000","город Заводоуковск","71703000","26375310","МП \"Заводоуковское ЖКХ\"","7215009599","721501001","производство (некомбинированная выработка)+передача+сбыт","WARM"]
[464,"Тюменская область","город Заводоуковск","71703000","город Заводоуковск","71703000","26375311","МУ по ОСС и Н \"Падунское\"","7215009831","721501001","производство (некомбинированная выработка)+передача+сбыт","WARM"]
[465,"Тюменская область","город Заводоуковск","71703000","город Заводоуковск","71703000","26375307","ООО \"Вектор\"","7215001342","721501001","производство (некомбинированная выработка)+передача+сбыт","WARM"]
[466,"Тюменская область","город Заводоуковск","71703000","город Заводоуковск","71703000","26375306","ООО \"Гарант\"","7215001335","721501001","производство (некомбинированная выработка)+передача+сбыт","WARM"]
[467,"Тюменская область","город Заводоуковск","71703000","город Заводоуковск","71703000","26375313","ООО \"Жилсервис\"","7215010139","721501001","производство (некомбинированная выработка)+передача+сбыт","WARM"]
[468,"Тюменская область","город Заводоуковск","71703000","город Заводоуковск","71703000","30861530","ООО \"Тепло\"","7207018279","720701001","производство (некомбинированная выработка)+передача+сбыт","WARM"]
[469,"Тюменская область","город Заводоуковск","71703000","город Заводоуковск","71703000","28150549","ООО НЭП \"Универсал\"","7215001448","721501001","производство (некомбинированная выработка)+передача+сбыт","WARM"]
[470,"Тюменская область","город Заводоуковск","71703000","город Заводоуковск","71703000","28792615","ПАО \"СУЭНКО\"","7205011944","720301001","производство (некомбинированная выработка)+передача+сбыт","WARM"]
[471,"Тюменская область","город Тобольск","71710000","город Тобольск","71710000","26800381","АО \"Уральская теплосетевая компания\"","7203203418","720350001","производство (некомбинированная выработка)+передача+сбыт","WARM"]
[472,"Тюменская область","город Тобольск","71710000","город Тобольск","71710000","26777765","МАОУ Байкаловская СОШ","7223009384","720601001","производство (некомбинированная выработка)+передача+сбыт","WARM"]
[473,"Тюменская область","город Тобольск","71710000","город Тобольск","71710000","26375276","ООО \"СИБУР Тобольск\"","7206025040","720650001","Передача+Сбыт","WARM"]
[474,"Тюменская область","город Тобольск","71710000","город Тобольск","71710000","26375276","ООО \"СИБУР Тобольск\"","7206025040","720650001","производство (некомбинированная выработка)+передача+сбыт","WARM"]
[475,"Тюменская область","город Тобольск","71710000","город Тобольск","71710000","26375276","ООО \"СИБУР Тобольск\"","7206025040","720650001","производство комбинированная выработка","WARM"]
[476,"Тюменская область","город Тобольск","71710000","город Тобольск","71710000","28792615","ПАО \"СУЭНКО\"","7205011944","720301001","производство (некомбинированная выработка)+передача+сбыт","WARM"]
[477,"Тюменская область","город Тюмень","71701000","город Тюмень","71701000","26320038","АО \"Аэропорт Рощино\"","7204660086","720301001","производство (некомбинированная выработка)+передача+сбыт","WARM"]
[478,"Тюменская область","город Тюмень","71701000","город Тюмень","71701000","28960152","АО \"ГУ ЖКХ\"","5116000922","511601005","Передача+Сбыт","WARM"]
[479,"Тюменская область","город Тюмень","71701000","город Тюмень","71701000","26360369","АО \"Тюменский комбинат хлебопродуктов\"","7204003683","720301001","производство (некомбинированная выработка)+передача+сбыт","WARM"]
[480,"Тюменская область","город Тюмень","71701000","город Тюмень","71701000","26776132","АО \"Тюменский электромеханический завод\"","7204003108","720301001","производство (некомбинированная выработка)+передача+сбыт","WARM"]
[481,"Тюменская область","город Тюмень","71701000","город Тюмень","71701000","30919929","АО \"УСТЭК\"","7203420973","720301001","Теплоноситель - Сбыт :: Производство :: Передача","WARM"]
[482,"Тюменская область","город Тюмень","71701000","город Тюмень","71701000","30919929","АО \"УСТЭК\"","7203420973","720301001","производство (некомбинированная выработка)+передача+сбыт","WARM"]
[483,"Тюменская область","город Тюмень","71701000","город Тюмень","71701000","26800381","АО \"Уральская теплосетевая компания\"","7203203418","720350001","производство (некомбинированная выработка)+передача+сбыт","WARM"]
[484,"Тюменская область","город Тюмень","71701000","город Тюмень","71701000","30794853","АО \"ЮТэйр-Инжиниринг\"","7204002009","720350001","производство (некомбинированная выработка)+передача+сбыт","WARM"]
[485,"Тюменская область","город Тюмень","71701000","город Тюмень","71701000","26375269","ГУП \"Ямало-Ненецкий ОРЦ для детей с ограниченными возможностями и детей, состоящих на диспансерном учете \"Большой Тараскуль\"","7204037749","720301001","производство (некомбинированная выработка)+передача+сбыт","WARM"]
[486,"Тюменская область","город Тюмень","71701000","город Тюмень","71701000","26360342","ЗАО \"Автоколонна 1228\"","7202000912","720201001","производство (некомбинированная выработка)+передача+сбыт","WARM"]
[487,"Тюменская область","город Тюмень","71701000","город Тюмень","71701000","26810875","ЗАО \"Завод \"Сантехкомплект\"","7203039648","720301001","Передача+Сбыт","WARM"]
[488,"Тюменская область","город Тюмень","71701000","город Тюмень","71701000","26810875","ЗАО \"Завод \"Сантехкомплект\"","7203039648","720301001","производство комбинированная выработка","WARM"]
[489,"Тюменская область","город Тюмень","71701000","город Тюмень","71701000","26360344","ОАО \"Автотеплотехник\"","7202031519","720301001","производство (некомбинированная выработка)+передача+сбыт","WARM"]
[490,"Тюменская область","город Тюмень","71701000","город Тюмень","71701000","28821857","ОАО \"Аэропорт Сургут\"","8602060523","720343001","производство (некомбинированная выработка)+передача+сбыт","WARM"]
[491,"Тюменская область","город Тюмень","71701000","город Тюмень","71701000","28467618","ОАО \"ТДСК\"","7203032191","720301001","производство (некомбинированная выработка)+передача+сбыт","WARM"]
[492,"Тюменская область","город Тюмень","71701000","город Тюмень","71701000","26360351","ОАО \"Тюмень-Дизель\"","7203076015","720301001","производство (некомбинированная выработка)+передача+сбыт","WARM"]
[493,"Тюменская область","город Тюмень","71701000","город Тюмень","71701000","30989030","ООО \"АДК\"","7203217555","720301001","Передача+Сбыт","WARM"]
[494,"Тюменская область","город Тюмень","71701000","город Тюмень","71701000","27570796","ООО \"Мегаполис-Сервис\"","7202222351","720201001","производство (некомбинированная выработка)+передача+сбыт","WARM"]
[495,"Тюменская область","город Тюмень","71701000","город Тюмень","71701000","30952083","ООО \"Наш ДОМ\"","7203380103","720301001","производство (некомбинированная выработка)+передача+сбыт","WARM"]
[496,"Тюменская область","город Тюмень","71701000","город Тюмень","71701000","30956431","ООО \"СТЭК\"","7203402269","720301001","Передача","WARM"]
[497,"Тюменская область","город Тюмень","71701000","город Тюмень","71701000","31077456","ООО \"Соровскнефть\"","7202170632","720301001","производство комбинированная выработка","WARM"]
[498,"Тюменская область","город Тюмень","71701000","город Тюмень","71701000","31083071","ООО \"ТЕХЭНЕРГО\"","7203429422","720301001","производство (некомбинированная выработка)+передача+сбыт","WARM"]
[499,"Тюменская область","город Тюмень","71701000","город Тюмень","71701000","30958386","ООО \"ТИС\"","7203428884","720301001","Передача","WARM"]
[500,"Тюменская область","город Тюмень","71701000","город Тюмень","71701000","30958386","ООО \"ТИС\"","7203428884","720301001","Теплоноситель - Передача","WARM"]
[501,"Тюменская область","город Тюмень","71701000","город Тюмень","71701000","30992089","ООО \"ТЛЦ\"","7203381837","720301001","производство (некомбинированная выработка)+передача+сбыт","WARM"]
[502,"Тюменская область","город Тюмень","71701000","город Тюмень","71701000","30355588","ООО \"Теплый дом\"","7203333167","720301001","производство (некомбинированная выработка)+передача+сбыт","WARM"]
[503,"Тюменская область","город Тюмень","71701000","город Тюмень","71701000","30438563","ООО \"Технолог\"","7203315954","720301001","производство (некомбинированная выработка)+передача+сбыт","WARM"]
[504,"Тюменская область","город Тюмень","71701000","город Тюмень","71701000","30838885","ООО \"Техноцентр\"","7203330328","720301001","производство (некомбинированная выработка)+передача+сбыт","WARM"]
[505,"Тюменская область","город Тюмень","71701000","город Тюмень","71701000","26381312","ООО \"Тюмень Водоканал\"","7204095194","720301001","производство (некомбинированная выработка)+передача+сбыт","WARM"]
[506,"Тюменская область","город Тюмень","71701000","город Тюмень","71701000","26507917","ООО \"Управляющая компания \"Лекс\"","7204031169","720401001","производство (некомбинированная выработка)+передача+сбыт","WARM"]
[507,"Тюменская область","город Тюмень","71701000","город Тюмень","71701000","26643041","ООО \"Управляющая компания \"УПРАВДОМ\"","7202155320","720301001","производство (некомбинированная выработка)+передача+сбыт","WARM"]
[508,"Тюменская область","город Тюмень","71701000","город Тюмень","71701000","30347280","ООО \"Управляющая компания Тюменьремжилсервис\"","7203315376","720301001","производство (некомбинированная выработка)","WARM"]
[509,"Тюменская область","город Тюмень","71701000","город Тюмень","71701000","28451589","ООО \"Холдинговая компания \"Колумб\"","7204104890","720301001","производство (некомбинированная выработка)+передача+сбыт","WARM"]
[510,"Тюменская область","город Тюмень","71701000","город Тюмень","71701000","26360362","ООО УК \"Тюменьжилсервис\"","7203163934","720301001","Передача+Сбыт","WARM"]
[511,"Тюменская область","город Тюмень","71701000","город Тюмень","71701000","26360362","ООО УК \"Тюменьжилсервис\"","7203163934","720301001","производство (некомбинированная выработка)+передача+сбыт","WARM"]
[512,"Тюменская область","город Тюмень","71701000","город Тюмень","71701000","28792615","ПАО \"СУЭНКО\"","7205011944","720301001","производство (некомбинированная выработка)+передача+сбыт","WARM"]
[513,"Тюменская область","город Тюмень","71701000","город Тюмень","71701000","26551662","ПАО \"Фортум\"","7203162698","997150001","производство комбинированная выработка","WARM"]
[514,"Тюменская область","город Тюмень","71701000","город Тюмень","71701000","26360373","ПАО ДОК \"Красный Октябрь\"","7204660270","720301001","производство (некомбинированная выработка)+передача+сбыт","WARM"]
[515,"Тюменская область","город Тюмень","71701000","город Тюмень","71701000","26360348","ПАО Опытный завод \"ЭЛЕКТРОН\"","7203000866","720301001","производство (некомбинированная выработка)+передача+сбыт","WARM"]
[516,"Тюменская область","город Тюмень","71701000","город Тюмень","71701000","30357202","Публичное акционерное общество \"Тюменские моторостроители\"","7203001556","720301001","Передача+Сбыт","WARM"]
[517,"Тюменская область","город Тюмень","71701000","город Тюмень","71701000","26375620","Свердловская дирекция по тепловодоснабжению - структурное подразделение центральной дирекции по тепловодоснабжению - филиала ОАО \"РЖД\"","7708503727","665931051","производство (некомбинированная выработка)+передача+сбыт","WARM"]
[518,"Тюменская область","город Тюмень","71701000","город Тюмень","71701000","26449407","Свечинский районный телекоммуникационный узел (РТУ) Кировского филиала ОАО \"Волгателеком\"","5260901817","432832002","производство (некомбинированная выработка)+передача+сбыт","WARM"]
[519,"Тюменская область","город Тюмень","71701000","город Тюмень","71701000","28856997","ТМУП \"ТТС\"","7203262893","720301001","производство (некомбинированная выработка)+передача+сбыт","WARM"]
[520,"Тюменская область","город Тюмень","71701000","город Тюмень","71701000","27580677","Тюменское УМН АО \"Транснефть-Сибирь\"","7201000726","720302001","производство (некомбинированная выработка)+передача+сбыт","WARM"]
[521,"Тюменская область","город Тюмень","71701000","город Тюмень","71701000","26375268","ФБУ \"Центр реабилитации ФСС РФ \"Тараскуль\"","7204013642","720401001","производство (некомбинированная выработка)+передача+сбыт","WARM"]
[522,"Тюменская область","город Тюмень","71701000","город Тюмень","71701000","30903763","ФГБУ \"ЦЖКУ\" МИНОБОРОНЫ РОССИИ","7729314745","770101001","Передача","WARM"]
[523,"Тюменская область","город Тюмень","71701000","город Тюмень","71701000","30903763","ФГБУ \"ЦЖКУ\" МИНОБОРОНЫ РОССИИ","7729314745","770101001","производство (некомбинированная выработка)+передача+сбыт","WARM"]
[524,"Тюменская область","город Тюмень","71701000","город Тюмень","71701000","26607640","Филиал АО \"Тюменьэнерго\"-\"Тюменские распределительные сети\"","8602060185","860201001","производство (некомбинированная выработка)+передача+сбыт","WARM"]
[525,"Тюменская область","город Тюмень","71701000","город Тюмень","71701000","30914574","Филиал ФГБУ \"ЦЖКУ\" МИНОБОРОНЫ РОССИИ (по ЦВО)","7729314745","667043001","производство (некомбинированная выработка)+передача+сбыт","WARM"]
[526,"Тюменская область","город Тюмень","71701000","город Тюмень","71701000","28856006","акционерное общество \"Юграавиа\"","8601053210","860101001","Передача+Сбыт","WARM"]
[527,"Тюменская область","город Тюмень","71701000","город Тюмень","71701000","26423553","филиал \"Сургутская ГРЭС-2\" ПАО \"Юнипро\"","8602067092","860202001","производство комбинированная выработка","WARM"]
[528,"Тюменская область","город Ялуторовск","71715000","город Ялуторовск","71715000","26360390","АСУСОН ТО \"Ялуторовский психоневрологический интернат\"","7207000070","720701001","производство (некомбинированная выработка)+передача+сбыт","WARM"]
[529,"Тюменская область","город Ялуторовск","71715000","город Ялуторовск","71715000","26360397","ГАУЗ ТО \"Ялуторовский санаторий-профилакторий \"Светлый\"","7207003603","720701001","производство (некомбинированная выработка)+передача+сбыт","WARM"]
[530,"Тюменская область","город Ялуторовск","71715000","город Ялуторовск","71715000","28272431","МП \"Строй-проект\" Ялуторовского района","7207008129","720701001","производство (некомбинированная выработка)+передача+сбыт","WARM"]
[531,"Тюменская область","город Ялуторовск","71715000","город Ялуторовск","71715000","28792615","ПАО \"СУЭНКО\"","7205011944","720301001","производство (некомбинированная выработка)+передача+сбыт","WARM"]
[532,"Тюменская область","город Ялуторовск","71715000","город Ялуторовск","71715000","26360391","Федеральное казенное учреждение \"Центр хранения Страхового фонда\"","7207000289","720701001","производство (некомбинированная выработка)+передача+сбыт","WARM"]

{"sheet":"modClassifierValidate","index":25,"n_rows":0,"n_cols":0,"rows_kept":0,"hidden":true}

{"sheet":"modProv","index":26,"n_rows":0,"n_cols":0,"rows_kept":0,"hidden":true}

{"sheet":"modHyp","index":27,"n_rows":0,"n_cols":0,"rows_kept":0,"hidden":true}

{"sheet":"modList00","index":28,"n_rows":0,"n_cols":0,"rows_kept":0,"hidden":true}

{"sheet":"modList01","index":29,"n_rows":0,"n_cols":0,"rows_kept":0,"hidden":true}

{"sheet":"modList02","index":30,"n_rows":0,"n_cols":0,"rows_kept":0,"hidden":true}

{"sheet":"modList03","index":31,"n_rows":0,"n_cols":0,"rows_kept":0,"hidden":true}

{"sheet":"modList11","index":32,"n_rows":0,"n_cols":0,"rows_kept":0,"hidden":true}

{"sheet":"modfrmDateChoose","index":33,"n_rows":0,"n_cols":0,"rows_kept":0,"hidden":true}

{"sheet":"modComm","index":34,"n_rows":0,"n_cols":0,"rows_kept":0,"hidden":true}

{"sheet":"modThisWorkbook","index":35,"n_rows":0,"n_cols":0,"rows_kept":0,"hidden":true}

{"sheet":"REESTR_MO","index":36,"n_rows":55,"n_cols":4,"rows_kept":55,"hidden":true}
["№","МР","МО","МО_ОКТМО"]
[1,"Абатский муниципальный район"," Абатский муниципальный район","71603000"]
[2,"Абатский муниципальный район","Абатский муниципальный район","71603000"]
[3,"Армизонский муниципальный район","Армизонский муниципальный район","71605000"]
[4,"Аромашевский муниципальный район","Аромашевский муниципальный район","71607000"]
[5,"Бердюжский муниципальный район","Бердюжский муниципальный район","71610000"]
[6,"Вагайский муниципальный район","Вагайский муниципальный район","71613000"]
[7,"Викуловский муниципальный район","Викуловский муниципальный район","71615000"]
[8,"Голышмановский муниципальный район","Голышмановский муниципальный район","71618000"]
[9,"Город Ишим","Город Ишим","71705000"]
[10,"Исетский муниципальный район","Исетский муниципальный район","71624000"]
[11,"Ишимский муниципальный район","Ишимский муниципальный район","71626000"]
[12,"Казанский муниципальный район","Казанский муниципальный район","71630000"]
[13,"Нижнетавдинский муниципальный район","Нижнетавдинский муниципальный район","71632000"]
[14,"Омутинский муниципальный район","Омутинский муниципальный район","71634000"]
[15,"Сладковский муниципальный район","Сладковский муниципальный район","71636000"]
[16,"Сорокинский муниципальный район","Сорокинский муниципальный район","71638000"]
[17,"Тобольский муниципальный район","Тобольский муниципальный район","71642000"]
[18,"Тюменский муниципальный р-н","Андреевское","71644405"]
[19,"Тюменский муниципальный р-н","Борковское","71644415"]
[20,"Тюменский муниципальный р-н","Горьковское","71644417"]
[21,"Тюменский муниципальный р-н","Ембаевское","71644420"]
[22,"Тюменский муниципальный р-н","Каменское","71644425"]
[23,"Тюменский муниципальный р-н","Каскаринское","71644430"]
[24,"Тюменский муниципальный р-н","Княжевское","71644435"]
[25,"Тюменский муниципальный р-н","Кулаковское","71644440"]
[26,"Тюменский муниципальный р-н","Мальковское","71644445"]
[27,"Тюменский муниципальный р-н","Московское","71644450"]
[28,"Тюменский муниципальный р-н","Муллашинское","71644451"]
[29,"Тюменский муниципальный р-н","Наримановское","71644452"]
[30,"Тюменский муниципальный р-н","Нижнепышминское","71644455"]
[31,"Тюменский муниципальный р-н","Новотарманское","71644456"]
[32,"Тюменский муниципальный р-н","Онохинское","71644458"]
[33,"Тюменский муниципальный р-н","Переваловское","71644460"]
[34,"Тюменский муниципальный р-н","Рабочий поселок Богандинский","71644410"]
[35,"Тюменский муниципальный р-н","Салаирское","71644470"]
[36,"Тюменский муниципальный р-н","Созоновское","71644474"]
[37,"Тюменский муниципальный р-н","Тюменский муниципальный р-н","71644000"]
[38,"Тюменский муниципальный р-н","Тюменский муниципальный район","71644400"]
[39,"Тюменский муниципальный р-н","Успенское","71644475"]
[40,"Тюменский муниципальный р-н","Червишевское","71644480"]
[41,"Тюменский муниципальный р-н","Чикчинское","71644485"]
[42,"Тюменский муниципальный р-н","поселок Боровский","71644412"]
[43,"Тюменский муниципальный р-н","поселок Винзили","71644416"]
[44,"Уватский муниципальный район","Демьянское","71648415"]
[45,"Уватский муниципальный район","Туртасское","71648445"]
[46,"Уватский муниципальный район","Уватский муниципальный район","71648000"]
[47,"Упоровский муниципальный район","Упоровский муниципальный район","71650000"]
[48,"Юргинский муниципальный район","Юргинский муниципальный район","71653000"]
[49,"Ялуторовский муниципальный район","Ялуторовский муниципальный район","71656000"]
[50,"Ярковский муниципальный район","Ярковский муниципальный район","71658000"]
[51,"город Заводоуковск","город Заводоуковск","71703000"]
[52,"город Тобольск","город Тобольск","71710000"]
[53,"город Тюмень","город Тюмень","71701000"]
[54,"город Ялуторовск","город Ялуторовск","71715000"]

{"sheet":"modfrmReestrMR","index":37,"n_rows":0,"n_cols":0,"rows_kept":0,"hidden":true}

{"sheet":"modfrmCheckUpdates","index":38,"n_rows":0,"n_cols":0,"rows_kept":0,"hidden":true}